Workbook

Sheet Intro
A1: 0 | C1: Alternative Evaluation | R1: Do you need free browsing the program file? | T1: Exchange Rates
D2: EXPECTED FINAL RESULT OF PRE DESIGN | P2: Click down | T2: 1 | U2: 1.96 | V2: =V3/T3 -> 1.219512195
C3: SALES, Loan Life | D3: =SUM(D4:D7) -> 13222400 | E3: =SUM(E4:E7) -> 25915904 | T3: 0.82 | V3: 1
C4: Tomatoes (T ) | D4: =ROUND(Q22,-2) -> 9757700 | E4: =D4*$U$2 -> 19125092 | F4: BROWSING | H4: Represented by local outsourcing east electric company Ltd., Bulgaria
C5: Cucumbers (C ) | D5: =ROUND(Q24,-2) -> 3464700 | E5: =D5*$U$2 -> 6790812 | F5: OPERATIONS | H5: TomCuc Greenhouse
C6: By/3th products | D6: =H26+J26+L26+N26+P26+T26 -> 0 | E6: =D6*$U$2 -> 0 | P6: =TODAY() -> 2019-08-16
A7: Click the picture  to increase it | C7: Market Products | D7: =Q28 -> 0 | E7: =D7*$U$2 -> 0 | G7: ←Level 5 → | I7: Zoom↓ | J7: Risk assessment and management Go to Bayes Theorem
C8: COSTS, Total | D8: =SUM(D9:D10) -> 4994606.429 | E8: =SUM(E9:E10) -> 9789428.601 | G8: ←Level 4 → | J8: Sensitivity analysis | M8: ←Zoom 100 PC screen resolution: 1920 x 1080
C9: Variable costs | D9: =BUDGET!C23 -> 2862858.836 | E9: =D9*$U$2 -> 5611203.319 | G9: ←Level 3 | J9: Resolution 1680 x 1050. For lower PC screen resolution try this →
A10: T | B10: C | C10: Fixed costs | D10: =BUDGET!C24 -> 2131747.593 | E10: =D10*$U$2 -> 4178225.282 | G10: ←Level 2 | I10: Zoom 143 | J10: Cash-flow Pro-forma Budgeting | N10: 1920 x 1080
A11: By-products | C11: Revenues /Costs | D11: =ROUND(D3-D8,-3) -> 8228000 | E11: =ROUND(E3-E8,-3) -> 16126000 | G11: ←Level 1 | I11: → | J11: Capital Goods and Services | N11: Select Zoom 100 if Resolution of your display is lesser than 1600 x 900.
C12: Marketing / RM | D12: =BUDGET!C25 -> 86632.97671 | E12: =D12*$U$2 -> 169800.6343 | G12: ←Level 0 | I12: Basic data, invariant for this Project
C13: From market Bad, is selected over underground water resource Increase / Decrease | E13: =E5*(1-E15) -> 7849929.468
A14: Efficiency of selling own products | E14: =E13*(1+E16) -> 10548342.72 | H14: Level Go dowm | S14: Credit-bank Loan Tranches
A15: Increased sale of final products | C15: 109 | D15: 92 | E15: =(D15-C15)/C15 -> -0.1559633028 | L15: Quality Evaluation | N15: =U38/M16 -> 678.9285 | O15: t p.a./ 1 ha | P15: relative yield | Q15: Demand increases | S15: 1․ | T15: 500000
A16: Increased the sale price, € | C16: 3.2 | D16: 4.3 | E16: =(D16-C16)/C16 -> 0.34375 | F16: Click the image to reveal the final results | L16: Area | M16: =A99 -> 4 | N16: =M16*N17 -> 2808 | O16: t p.a. Project | S16: 2․ | T16: 500000
E17: =E13/E14 -> 0.7441860465 | K17: T≈ | L17: 0.7 | M17: =M16*L17 -> 2.8 | N17: =U36/M17 -> 702 | O17: t p.a./ 1 ha | P17: Max size: | S17: 3․ | T17: 1500000
A18: Overall probability of Bad event - lost profits due to the wholesalers distribution. | K18: C≈ | L18: =100%-L17 -> 0.3 | M18: =M16*L18 -> 1.2 | N18: =U37/M18 -> 625.095 | O18: t p.a./ 1 ha | P18: 13.2384
E19: Revenue increase due to better distribution, TOTAL: | F19: 7-Yr Option | G19: FINAL PRODUCTS FOR SALE | K19: Other≈ | L19: =100%-L17-L18 -> 0 | M19: =M16*L19 -> 0 | S19: 4․ | T19: 1500000
B20: The greenhouse complex | E20: Loans A + B - D Investment, TOTAL: | F20: Sales Nr of Yrs: | J20: =BUDGET!G41 -> 1 | K20: 2, 3, | N20: =BUDGET!M41 -> 4 | P20: =BUDGET!O41 -> 5 | S20: 5․ | T20: 1000000
A21: Creditor ECA  | B21: Project Finance | E21: =Bayes!P21/100 -> 0.021 | F21: Products | G21: t p.a. | H21: Total, € | I21: t p.a. | J21: Total, € | M21: t p.a. | N21: Total, € | O21: t p.a. | P21: Total, € | Q21: Check | S21: 6․ | T21: 1000000
A22: Export Credit Insurance | C22: Financial Modeling | E22: =E14*(1-E21) -> 10326827.53 | F22: Tomatoes T | G22: =U36 -> 1965.6 | H22: =U39 -> 1951544.032 | I22: =U36 -> 1965.6 | J22: =U39 -> 1951544.032 | K22: . . . . . . | M22: =U36 -> 1965.6 | N22: =U39 -> 1951544.032 | O22: =U36 -> 1965.6 | P22: =U39 -> 1951544.032 | Q22: =P22*P20 -> 9757720.161 | S22: SubTOTAL (4.+ 5.+ 6.): | T22: =SUM(T19:U21) -> 3500000
A23: Marketing | C23: Business Plan East Electric Company | F23: Outcome: | S23: TOTAL: | T23: =SUM(T15:U17)+T22 -> 6000000
C24: Risk Assessment Equivalence Ltd. | F24: Cucumbers C | G24: =U37 -> 750.114 | H24: =U40 -> 692930.2262 | I24: =U37 -> 750.114 | J24: =U40 -> 692930.2262 | K24: . . . . . . | M24: =U37 -> 750.114 | N24: =U40 -> 692930.2262 | O24: =U37 -> 750.114 | P24: =U40 -> 692930.2262 | Q24: =P24*P20 -> 3464651.131
D25: Greenhouse platform construction | F25: Outcome:
D26: & infrastructure, power connection | F26: By-products | K26: . . . . . . | Q26: =P26*P20 -> 0
D27:  Construction company | F27: 2ndstage of project
A28: Products: | D28: Intellectual products: | F28: Others, fromarket | H28: =BUDGET!G49+BUDGET!H49 -> 0.5 | J28: =BUDGET!I49+BUDGET!J49 -> 800 | K28: . . . . . . | N28: =BUDGET!N49+BUDGET!O49 -> 0 | P28: =BUDGET!P49+BUDGET!Q49 -> 0 | Q28: =O28*P20 -> 0
A29: Cucumbers ← | C29: ← Risk assessment & management | F29: Outcome:
A30: Tomatoes ← | D30: ← Online cash-flow control system | F30: Budget, TOTAL | G30: =H22+H24+H26+H28 -> 2644474.758 | I30: =J22+J24+J26+J28 -> 2645274.258 | K30: . . . . . . | M30: =N22+N24+N26+N28 -> 2644474.258 | O30: =P22+P24+P26+O28 -> 2644474.258 | Q30: =Q22+Q24+Q26+Q28 -> 13222371.29
A31: By-products of tomatoes & cucumbers ← | D31: ← History of sales and costs | F31: Outcome, TOTAL | G31: =H23+H25+H27+H29 -> 0 | I31: =J23+J25+J27+J29 -> 0 | K31: =L23+L25+L27+L29 -> 0 | M31: =N23+N25+N27+N29 -> 0 | O31: =P23+P25+P27+P29 -> 0
A32: The applied color and image visualizations in all worksheets are designed for faster and easier perception of the figures and formulas, as well as for their long term remembering for project financing success. | U32: ¯ Basic unchangeable values for transfer to upper level Ö | V32: Average
H33: Sales Mo: | I33: 1 | J33: =I33+1 -> 2 | K33: =J33+1 -> 3 | L33: 4 | M33: 5 | N33: 6 | O33: 7 | P33: 8 | Q33: 9 | R33: 10 | S33: 11 | T33: 12 | U33: Total/Average
H34: SingleT Price,€/kg | I34: =C50 -> 1.6443 | J34: =C51 -> 2.6892 | K34: =C52 -> 2.0898 | L34: =C53 -> 1.5066 | M34: =C54 -> 1.1421 | N34: =C55 -> 0.7128 | O34: =C56 -> 0.5988735 | P34: =C57 -> 0.5427 | Q34: =C58 -> 0.7128 | R34: =C59 -> 1.4256 | S34: =C60 -> 1.0935 | T34: =C61 -> 1.4256 | U34: =SUM(I34:T34)/12 -> 1.298656125 | V34: /kg
H35: SingleC Price, €/kg | I35: =F50 -> 1.344 | J35: =F51 -> 1.1928 | K35: =F52 -> 1.3524 | L35: =F53 -> 1.4532 | M35: =F54 -> 1.0248 | N35: =F55 -> 0.6636 | O35: =F56 -> 0.5124 | P35: =F57 -> 0.6468 | Q35: =F58 -> 1.2432 | R35: =F59 -> 0.84 | S35: =F60 -> 1.848 | T35: =F61 -> 0.7476 | U35: =SUM(I35:T35)/12 -> 1.0724 | V35: /kg
H36: This caseT yield,kg | I36: =A50*$M$17*10000 -> 0 | J36: =A51*$M$17*10000 -> 0 | K36: =A52*10000*$M$17 -> 123200 | L36: =A53*$M$17*10000 -> 240800 | M36: =A54*$M$17*10000 -> 271600 | N36: =A55*$M$17*10000 -> 288400 | O36: =A56*$M$17*10000 -> 305200 | P36: =A57*$M$17*10000 -> 274400 | Q36: =A58*$M$17*10000 -> 210000 | R36: =A59*$M$17*10000 -> 131600 | S36: =A60*$M$17*10000 -> 75600 | T36: =A61*$M$17*10000 -> 44800 | U36: =SUM(I36:T36)/1000 -> 1965.6 | V36: /ha
H37: This case C yield,kg | I37: =D50*M18*10000 -> 0 | J37: =D51*$M$18*10000 -> 41932.8 | K37: =D52*10000*$M$18 -> 75501.6 | L37: =D53*$M$18*10000 -> 88861.2 | M37: =D54*$M$18*10000 -> 28922.4 | N37: =D55*$M$18*10000 -> 128466 | O37: =D56*$M$18*10000 -> 136677.6 | P37: =D57*$M$18*10000 -> 120356.4 | Q37: =D58*$M$18*10000 -> 14527.2 | R37: =D59*$M$18*10000 -> 60268.8 | S37: =D60*$M$18*10000 -> 35802 | T37: =D61*$M$18*10000 -> 18798 | U37: =SUM(I37:T37)/1000 -> 750.114 | V37: /ha
H38: This TOTAL YIELD | I38: =I36+I37 -> 0 | J38: 41932.8 | K38: =K36+K37 -> 198701.6 | L38: =L36+L37 -> 329661.2 | M38: 300522.4 | N38: =N36+N37 -> 416866 | O38: 441877.6 | P38: 394756.4 | Q38: 224527.2 | R38: 191868.8 | S38: 111402 | T38: 63598 | U38: =SUM(U36:U37) -> 2715.714 | V38: =IF(SUM(I38:T38)/1000=U38,TRUE,FALSE) -> TRUE
H39: This caseTsales, € | I39: =I36*I34 -> 0 | J39: 0 | K39: =K36*K34 -> 257463.36 | L39: 362789.28 | M39: 310194.36 | N39: 205571.52 | O39: =O36*O34 -> 182776.1922 | P39: 148916.88 | Q39: 149688 | R39: 187608.96 | S39: 82668.6 | T39: 63866.88 | U39: =SUM(I39:T39) -> 1951544.032 | V39: /ann
H40: This caseC sales, € | I40: =I37*I35 -> 0 | J40: =J37*J35 -> 50017.44384 | K40: =K37*K35 -> 102108.3638 | L40: =L37*L35 -> 129133.0958 | M40: =M37*M35 -> 29639.67552 | N40: =N37*N35 -> 85250.0376 | O40: 70033.60224 | P40: 77846.51952 | Q40: 18060.21504 | R40: 50625.792 | S40: 66162.096 | T40: 14053.3848 | U40: =SUM(I40:T40) -> 692930.2262 | V40: /ann
H41: Costs ↓ | T41: Sales: | U41: =SUM(U39:U40) -> 2644474.258 | V41: /ann
H42: Pell+Trans.Heating | I42: =N66 -> 27091.85325 | J42: =N67 -> 24628.99602 | K42: =N68 -> 20926.94224 | L42: =N69 -> 16008.85447 | M42: =N70 -> 7345.118369 | N42: =N71 -> 0 | O42: =N72 -> 0 | P42: =N73 -> 0 | Q42: =N74 -> 0 | R42: =N75 -> 12314.47447 | S42: =N76 -> 18471.71171 | T42: =N77 -> 20934.61601 | U42: =SUM(I42:T42) -> 147722.5665 | V42: /ann
C43: For Developer's use only | H43: This Packaging | I43: =I36*$G$68+I37*$G$71 -> 0 | J43: =J36*$G$68+J37*$G$71 -> 1886.976 | K43: 11405.572 | L43: =L36*$G$68+L37*$G$71 -> 19650.754 | M43: =M36*$G$68+M37*$G$71 -> 18955.508 | N43: 24526.97 | O43: 25988.492 | P43: 23252.038 | Q43: 14303.724 | R43: 11266.096 | S43: 6525.09 | T43: 3757.91 | U43: =SUM(I43:T43) -> 161519.13 | V43: /ann
H44: This Running cost | U44: =SUM(I44:T44) -> 0 | V44: /ann
A45: Tom. | B45: I N F L O W D A T A W O R K I N G P A N E L | H45: Others fromarket | V45: /ann
C46: DATA ENTRY PANEL FOR THE BASE Level 0 | T46: I N C R E A S E : | U46: Æ VAT | V46: Æ Own Funds | W46: Prc OwnFunds
A47: ↑ Increase | B47: C %+4% | C47: Potential YIELD and | D47: SALES | H47: COSTS of fertilizer, seeding and substrate | K47: Water p.a. | L47: Consumption | M47: Electricity | N47: This | O47: Project | P47: Budgeted values + VAT revivable | S47: =S48+S56 -> 5618363.284 | T47: =M16 -> 4 | U47: =U48+U56 -> 5446863.284 | V47: =V48+V56 -> 5494863.284 | W47: =V47*T57 -> 0
A48: price option | B48: Price | C48: =-IF(D49=0,0,(D49+3)/100) -> -0.19 | D48: Yield C kg/m2 | E48: Price ↑ | F48: =-D49/100 -> -0.16 | G48: These data are based on the EU FSS | H48: 13.4 | I48: ←Total area as base | K48: 5 | L48: liter p.m2 | M48: 6 | N48: Water + | O48: Electricity | P48: Local Costs | Q48: ↓ | R48: 1 | S48: =SUM(S49:S55)+S64 -> 768363.2836 | T48: VAT | U48: =SUM(U49:U55) -> 768363.2836 | V48: =SUM(V49:V55) -> 768363.2836 | W48: =SUM(W49:W55) -> 757800
A49: Yield T kg/m2 | B49: ↑ € /kg | C49: € /kg | D49: 16 | E49: € /kg | H49: =A99 -> 4 | I49: ←This project ↓ | K49: 0.3 | L49: € p. liter | M49: 0.06 | O49: ↓ | P49: Permits & Construction, F26 | S49: 80000 | T49: 0 | U49: =S49*(1+$T$49) -> 80000 | V49: =U49*(1+T$60) -> 80000 | W49: =V49*(1-$T$57) -> 80000
A50: 0 | B50: 2.03 | C50: =B50*(1+$C$48) -> 1.6443 | D50: 0 | E50: 1.6 | F50: =E50*(1+$F$48) -> 1.344 | H50: ↓ Fertilizers ↓ . | K50: 0.218 | L50: =$K$48*$K$49*$T$47*K50*10000 -> 13080 | M50: =K50*$M$48*$M$49*$T$47*10000 -> 3139.2 | P50: Terrain, infrastructure, F27 | R50: 0.025 | S50: =ROUNDUP(R50*S57,-2) -> 107800 | T50: TOTAL | U50: =S50*(1+$T$49) -> 107800 | V50: =U50*(1+T$60) -> 107800 | W50: =V50*(1-$T$57) -> 107800
A51: 0 | B51: 3.32 | C51: =B51*(1+$C$48) -> 2.6892 | D51: =34944/10000 -> 3.4944 | E51: 1.42 | F51: =E51*(1+$F$48) -> 1.1928 | H51: =I84 -> 33862.68657 | I51: -0.05 | J51: =I52/$H$49 -> 8042.38806 | K51: 0.175 | L51: =$K$48*$K$49*$T$47*K51*10000 -> 10500 | M51: =$M$48*$M$49*$T$47*10000*K51 -> 2520 | P51: Others unforeseen exp. F29 | R51: 15000 | S51: =R51*$T$47 -> 60000 | U51: =S51*(1+$T$49) -> 60000 | V51: =U51*(1+T$49) -> 60000 | W51: =V51*(1-$T$57) -> 60000
A52: 4.4 | B52: 2.58 | C52: =B52*(1+$C$48) -> 2.0898 | D52: =62918/10000 -> 6.2918 | E52: 1.61 | F52: =E52*(1+$F$48) -> 1.3524 | H52: =$J$51*M17 -> 22518.68657 | I52: =H51*(1+I51) -> 32169.55224 | J52: €/ Yr/ ha | K52: 0.141 | L52: =$K$48*$K$49*$T$47*K52*10000 -> 8460 | M52: 2030.4 | P52: Truck + buss→local transport | S52: 90000 | T52: Local cost | U52: =S52*(1+$T$49) -> 90000 | V52: 90000 | W52: =V52*(1-$T$57) -> 90000
A53: 8.6 | B53: 1.86 | C53: =B53*(1+$C$48) -> 1.5066 | D53: =74051/10000 -> 7.4051 | E53: 1.73 | F53: =E53*(1+$F$48) -> 1.4532 | H53: =J51*M18 -> 9650.865672 | K53: 0.064 | L53: =$K$48*$K$49*$T$47*10000*K53 -> 3840 | M53: 921.6 | P53: BizPlan, Fin. modeling, F33 | R53: =IF($T$47>10,400000,IF($T$47<=5,230000,240000)) -> 230000 | S53: =R53 -> 230000 | T53: Exp-Imp | U53: =S53*(1+$T$49) -> 230000 | V53: 230000 | W53: =V63*(1-$T$57) -> 160000
A54: 9.7 | B54: 1.41 | C54: =B54*(1+$C$48) -> 1.1421 | D54: =24102/10000 -> 2.4102 | E54: 1.22 | F54: 1.0248 | H54: ↓ Seeding ↓ | K54: 0.01 | L54: 600 | M54: 144 | N54: 6 Mo | O54: SubTOTAL | P54: Risk Assessment, F34 | R54: =IF($T$47>10,60000,IF($T$47<=5,30000,28000)) -> 30000 | S54: =R54 -> 30000 | T54: 59572.8 | U54: 30000 | V54: 30000 | W54: =V53*(1-$T$57) -> 230000
A55: 10.3 | B55: 0.88 | C55: 0.7128 | D55: =107055/10000 -> 10.7055 | E55: 0.79 | F55: 0.6636 | H55: =I86 -> 82149.25373 | I55: =H55*(1+I51) -> 78041.79104 | J55: =I55/$H$49 -> 19510.44776 | K55: 0.01 | L55: =$K$48*$K$49*$T$47*10000*K55 -> 600 | M55: 144 | N55: 1 → | O55: =SUM(L50:L55)+SUM(M50:M55) -> 45979.2 | P55: Plants' mater's, seeding, F30 | R55: =J51+J55+J58 -> 42640.8209 | S55: =R55*T47 -> 170563.2836 | U55: =S55*(1+$T$49) -> 170563.2836 | V55: 170563.2836 | W55: =V54*(1-$T$57) -> 30000
A56: 10.9 | B56: 0.73935 | C56: =B56*(1+$C$48) -> 0.5988735 | D56: =113898/10000 -> 11.3898 | E56: 0.61 | F56: 0.5124 | H56: =J55*$T$47 -> 78041.79104 | J56: €/ Yr/ ha | K56: 0 | L56: 0 | M56: 0 | P56: Greenhouse Import ↓ | R56: Basic data↓ | S56: =ROUND(SUM(S57:S62)+S63,-4) -> 4850000 | T56: OwnFunds | U56: =SUM(U57:U63) -> 4678500 | V56: =SUM(V57:V63) -> 4726500 | W56: =SUM(W58:W62) -> 4556000
A57: 9.8 | B57: 0.67 | C57: 0.5427 | D57: =100297/10000 -> 10.0297 | E57: 0.77 | F57: 0.6468 | H57: Biennially ↓ Substrate ↓ Biennially | K57: 0 | L57: 0 | M57: 0 | P57: Greenhouse (Cap.Goods F7) | R57: =ROUND(A100,-3) -> 4310000 | S57: =R57 -> 4310000 | T57: 0 | U57: =S57*(1+$T$49) -> 4310000 | V57: =U57*(1+T$60) -> 4310000 | W57: =V56*(1-$T$57) -> 4726500
A58: 7.5 | B58: 0.88 | C58: =B58*(1+$C$48) -> 0.7128 | D58: =12106/10000 -> 1.2106 | E58: 1.48 | F58: 1.2432 | H58: =I88 -> 63528.35821 | I58: =H58*(1+I51) -> 60351.9403 | J58: =I58/$H$49 -> 15087.98507 | K58: 0.009 | L58: 540 | M58: 129.6 | P58: Construct+installation Cntr. | S58: 170000 | T58: + | V58: =U59*(1+T$60) -> 150000 | W58: =V57*(1-$T$57) -> 4310000
A59: 4.7 | B59: 1.76 | C59: =B59*(1+$C$48) -> 1.4256 | D59: =50224/10000 -> 5.0224 | E59: 1 | F59: 0.84 | H59: =J58*$T$47/2 -> 30175.97015 | J59: €/ Yr/ ha | K59: 0.062 | L59: 3720 | M59: 892.8 | P59: Truck transport, F | S59: 150000 | T59: =T60-T57 -> 0 | U59: =S59*(1+$T$57) -> 150000 | V59: =U60*(1+T$60) -> 10500
A60: 2.7 | B60: 1.35 | C60: 1.0935 | D60: =29835/10000 -> 2.9835 | E60: 2.2 | F60: 1.848 | H60: q Biennially s | I60: s Biennially q | K60: 0.12 | L60: =$K$48*$K$49*$T$47*10000*K60 -> 7200 | M60: 1728 | N60: 6 Mo | O60: SubTOTAL | P60: 1 Yr Supervision | Q60: F10→ 2 | R60: 1 | S60: =A92*R60 -> 10500 | T60: =((100/(100-T57*100)*100-100)/100) -> 0 | U60: =S60*(1+$T$57) -> 10500 | V60: =U61*(1+T$60) -> 48000 | W60: =V58*(1-$T$57) -> 150000
A61: 1.6 | B61: 1.76 | C61: 1.4256 | D61: =15665/10000 -> 1.5665 | E61: 0.89 | F61: 0.7476 | H61: TOTAL | I61: TOTAL | K61: 0.191 | L61: 11460 | M61: 2750.4 | N61: 2 → | O61: =SUM(L56:L61)+SUM(M56:M61) -> 28420.8 | P61: Management.&Training, F10 | R61:  | S61: =A91 -> 48000 | T61: Σ over↓ | U61: =S61*(1+$T$49) -> 48000 | V61: =U61*(1+T$60) -> 48000 | W61: =V60*(1-$T$57) -> 48000
A62: =SUM(A50:A61) -> 70.2 | B62: =SUM(B50:B61)/12 -> 1.603279167 | C62: =SUM(C50:C61)/12 -> 1.298656125 | D62: =SUM(D50:D61) -> 62.5095 | E62: =SUM(E50:E61)/12 -> 1.276666667 | F62: =SUM(F50:F61)/12 -> 1.0724 | H62: =H52+H53+H56+H59 -> 140387.3134 | I62: =H52+H53+H56 -> 110211.3433 | K62: =SUM(K50:K61) -> 1 | L62: =SUM(L50:L61) -> 60000 | M62: =SUM(M50:M61) -> 14400 | O62: ←Change↓ | W62: =V61*(1-$T$57) -> 48000
A63: TOTAL | B63: Average | C63: =B63 -> Average | D63: TOTAL | E63: Average | F63: =E63 -> Average | J63: Pellets → | K63: Conventional | L63: HEATING | M63: Consumption | N63: 0 | O63: Location↑ | P63: Risk Assessment software | S63: =240000*C97 -> 160000 | U63: =S63*(1+$T$49) -> 160000 | V63: =U63*(1+T$60) -> 160000 | W63: =V59*(1-$T$57) -> 10500
B64: min. Price exWarehouse, LondonÒ | C64: 1.2 | E64: m | H64: 155 | I64: Tansport → | J64: 20 | K64: 350 | L64: =K64/J64/1000 -> 0.0175 | M64: .+ Transport | N64: This project | P64: Exclusive, F29 | Q64: =IF(N63>0,5.7,0) -> 0 | R64: 0 | S64: =Q64*R64 -> 0
B65: Ý Resource: Nov. 2016 | C65: 1.35 | D65: Other product | E65: Price in € | F65: PACKING | H65: Pellets → | I65: kg p.Mo↓ | J65: kg p.1ha | K65: =H64/1000 -> 0.155 | L65: Transp. p.ha | M65: €/Mo/ha | N65: € p.↓Mo
A66: Spain yiels T + C: | B66: Average price ↓ in Holland | D66: Yield ↓ kg/m2 | E66: € /kg | G66: T | I66: 575463 | J66: =I66/$H$48 -> 42945 | K66: =J66*$K$65*(1+$N$63) -> 6656.475 | L66: =K66*$L$64 -> 116.4883125 | M66: =K66+L66 -> 6772.963313 | N66: =M66*$T$47 -> 27091.85325
A67: Kg | B67: Kg/m2 | C67: € /kg | F67: 10 | G67: 0.65 | I67: 523149 | J67: =I67/$H$48 -> 39040.97015 | K67: =J67*$K$65*(1+$N$63) -> 6051.350373 | L67: =K67*$L$64 -> 105.8986315 | M67: =K67+L67 -> 6157.249005 | N67: =M67*$T$47 -> 24628.99602
A68: 264768 | B68: =A68/$C$82 -> 4.536184211 | C68: 1.21 | F68: 1 | G68: =G67/F67 -> 0.065 | I68: 444513 | J68: =I68/$H$48 -> 33172.61194 | K68: =J68*$K$65*(1+$N$63) -> 5141.754851 | L68: =K68*$L$64 -> 89.98070989 | M68: =K68+L68 -> 5231.735561 | N68: =M68*$T$47 -> 20926.94224
A69: 728112 | B69: 12.47450658 | C69: 2.83 | D69: Here ↗ | E69: Image of new product | G69: C | I69: 340047 | J69: =I69/$H$48 -> 25376.64179 | K69: =J69*$K$65 -> 3933.379478 | L69: 68.83414086 | M69: =K69+L69 -> 4002.213618 | N69: =M69*$T$47 -> 16008.85447
A70: 1125264 | B70: 19.27878289 | C70: 1.85 | F70: 10 | G70: 0.45 | I70: 156019 | J70: =I70/$H$48 -> 11643.20896 | K70: =J70*$K$65*(1+$N$63/1.5) -> 1804.697388 | L70: =K70*$L$64 -> 31.58220429 | M70: =K70+L70 -> 1836.279592 | N70: =M70*$T$47 -> 7345.118369 | V70: iGo to Level
A71: 1191456 | B71: 20.41282895 | C71: 1.33 | F71: 1 | G71: =G70/F70 -> 0.045 | I71: 0 | J71: 0 | K71: =J71*$K$65*(1+$N$63) -> 0 | L71: 0 | M71: =K71+L71 -> 0 | N71: 0
A72: 1059072 | B72: 18.14473684 | C72: 1.01 | I72: 0 | J72: 0 | K72: =J72*$K$65*(1+$N$63) -> 0 | L72: 0 | M72: 0 | N72: 0
A73: 0 | B73: 0 | C73: 0.63 | I73: 0 | J73: 0 | K73: =J73*$K$65*(1+$N$63) -> 0 | L73: 0 | M73: 0 | N73: 0
A74: 369152 | B74: 6.324561404 | C74: 0.53 | I74: 0 | J74: 0 | K74: =J74*$K$65*(1+$N$63) -> 0 | L74: 0 | M74: 0 | N74: 0
A75: 595728 | B75: 10.20641447 | C75: 0.51 | I75: 261574 | J75: 19520.44776 | K75: =J75*$K$65*(1+$N$63/3) -> 3025.669403 | L75: 52.94921455 | M75: 3078.618618 | N75: 12314.47447
A76: 728112 | B76: 12.47450658 | C76: 0.63 | I76: 392361 | J76: 29280.67164 | K76: =J76*$K$65*(1+$N$63) -> 4538.504104 | L76: 79.42382183 | M76: =K76+L76 -> 4617.927926 | N76: 18471.71171
A77: 369152 | B77: 6.324561404 | C77: 1.01 | I77: 444676 | J77: 33184.77612 | K77: =J77*$K$65*(1+$N$63) -> 5143.640299 | L77: 90.01370522 | M77: 5233.654004 | N77: 20934.61601
A78: 132384 | B78: 2.268092105 | C78: 0.95 | I78: =SUM(I66:I77)/10000 -> 313.7802 | J78: =SUM(J66:J77) -> 234164.3284 | K78: =SUM(K66:K77) -> 36295.4709 | L78: =SUM(L66:L77) -> 635.1707407 | M78: =SUM(M66:M77) -> 36930.64164 | N78: =SUM(N66:N77) -> 147722.5665
A79: 264768 | B79: 4.536184211 | C79: 1.26 | N79: ha
A80: =SUM(A68:A79) -> 6827968 | B80: =SUM(B68:B79) -> 116.9813596 | C80: ↙ OFFERS ↘ | D80: =SUM(D68:D79) -> 0 | E80: =SUM(E68:E79)/12 -> 0
A81: ① Spain | B81: Polycarbonate | C81: Production + Nursery | D81: ② | E81: Canada ③ | F81: Netherland–Poland | I81: VEGETABLE MATERIALS for | J81: =A99 -> 4
A82: =13810*2 -> 27620 | B82: Product zones 1+3 | C82: 58368 | D82: Sector 1 | E82: =158.15*351 -> 55510.65 | H82: Year | I82: 1 | J82: =I82+1 -> 2 | K82: =J82+1 -> 3 | L82: 4 | M82: 5 | N82: 6 | O82: 7 | P82: 8
A83: =14330*2 -> 28660 | B83: Product zones 2+4 | C83: =C82/10000 -> 5.8368 | D83: Sector 2 | E83: =158.15*351 -> 55510.65 | G83: =H48 -> 13.4 | H83: Fertilizers: | I83: 113440 | J83: 113440 | K83: 113440 | L83: 113440 | M83: 113440 | N83: 113440 | O83: 113440 | P83: 113440
A84: 2700 | B84: Cenrtral warehouse | G84: =A99 -> 4 | H84: Fertilizers: | I84: =I83*$G$84/$G$83 -> 33862.68657 | J84: =J83*$G$84/$G$83 -> 33862.68657 | K84: =K83*$G$84/$G$83 -> 33862.68657 | L84: 33862.68657 | M84: 33862.68657 | N84: 33862.68657 | O84: 33862.68657 | P84: 33862.68657
A85: =SUM(A82:A84) -> 58980 | B85: Ç TOTAL surface greenhouse+nursery | D85: Service area | E85: =ROUND(28.8*42.25,-1) -> 1220 | H85: Seeding: | I85: 275200 | J85: 275200 | K85: 275200 | L85: 275200 | M85: 275200 | N85: 275200 | O85: 275200 | P85: 275200
A86: 2246 | B86: Nursery ↑ included | D86: Central coridor | E86: =ROUND((3.25*351),-1) -> 1140 | H86: Seeding: | I86: =I85*$G$84/$G$83 -> 82149.25373 | J86: =J85*$G$84/$G$83 -> 82149.25373 | K86: =K85*$G$84/$G$83 -> 82149.25373 | L86: 82149.25373 | M86: 82149.25373 | N86: 82149.25373 | O86: 82149.25373 | P86: 82149.25373
A87: =A85/10000 -> 5.898 | B87: Ç Surface È | D87: Surface È | E87: =SUM(E82:E83)/10000 -> 11.10213 | H87: Substrate: | I87: 212820 | J87: 0 | K87: 212820 | L87: 0 | M87: 212820 | N87: 0 | O87: 212820 | P87: 0
D88: p. 1 ha | G88: ? | H88: Substrate: | I88: =I87*$G$84/$G$83 -> 63528.35821 | J88: =J87*$G$84/$G$83 -> 0 | K88: =K87*$G$84/$G$83 -> 63528.35821 | L88: =L87*$G$84/$G$83 -> 0 | M88: 63528.35821 | N88: 0 | O88: 63528.35821 | P88: 0
A89: =A98 -> 6462076 | B89: GREENHOUSE | C89: CIF & Auxiliary Facilities | D89: Construction | E89: =1678165 -> 1678165 | H89: TOTAL: | I89: =I84+I86+I88 -> 179540.2985 | J89: =J84+J86+J88 -> 116011.9403 | K89: =K84+K86+K88 -> 179540.2985 | L89: 116011.9403 | M89: 179540.2985 | N89: 116011.9403 | O89: 179540.2985 | P89: =P84+P86+P88 -> 116011.9403
A90: 0 | B90: Constr. & commiss.
A91: 48000 | B91: Supervision p.Yr | C91: =A91+A92 -> 58500 | D91: Equipment | E91: =837750 -> 837750
A92: 10500 | B92: Training 4 x €2600 | D92: Supervision | E92: 159600
A93: 300000 | B93: Trucking | C93: 140 trucks | D93: Shipping+Trucking | E93: =189500+A93 -> 489500
A94: =ROUND((SUM(A89:A93)),-1) -> 6820580 | B94: Price | D94: Price | E94: =ROUND((SUM(E89:E93)*T3),-1) -> 2595310
A95: =A89/A87 -> 1095638.522 | B95: ← = 1 ha = →
A96: Old surface & Prc | C96: Coef.
A97: 6 | B97: 3 | C97: =2/3 -> 0.6666666667
A98: 6462076 | B98: =M16/B97 -> 1.333333333
A99: =A97*C97 -> 4 | B99: √
A100: =ROUNDUP(A98*C97,-4) -> 4310000 | B100: =ROUNDUP(A98*C97,-4) -> 4310000
A101: =A98/A97 -> 1077012.667 | B101: ← 6 ha / 1 ha →
A102: =A100/A99 -> 1077500 | B102: ← 4 ha / 1 ha →

Sheet Cap.Goods
D3: Level ① | E3: Zoom 152 Capital Goods and Services | Z3: 1 | AA3: =Intro!V2 -> 1.219512195
Q4: =BUDGET!D13 -> 2019-12-30
B5: A | C5: Adv.% | D5: CAPITAL INVESTMENT EXPORT (Loan "A") | F5: TOTAL | G5: 1st | H5: 2nd | I5: 3th | J5: 4 + 5 + 6 | L5: D | M5: → | N5: OWN FUNDS Loan "D" | P5: Loan "A" + "D" | R5: TOTAL | U5: Check
C6: 1st | F6: =SUM(G6:J6) -> 6000000 | G6: =Y24 -> 500000 | H6: =Y25 -> 500000 | I6: =Y26 -> 1500000 | J6: =Y31 -> 3500000 | O6: 0 | P6: Advance | Q6: Balance | R6: Value | T6: → | U6: ↓
A7: =IF(SUM(G7:J7)=F7,"Ok","Fal") -> Ok | C7: 0.05 | E7: Greenhouse set with the operating structure, DDP__ | F7: =Intro!$S$56 -> 4850000 | G7: =ROUNDUP((C7*F7),-1) -> 242500 | H7: 350000 | I7: 1000000 | J7: =F7-G7-H7-I7 -> 3257500 | P7: =G7+H7+I7+N7 -> 1592500 | Q7: =J7+O7 -> 3257500 | R7: =P7+Q7 -> 4850000 | U7: =IF(SUM(P8:Q8)=(Intro!S57*D7),"True","False") -> True | V7: Loan "A" | W7: Purchase, exported cap. goods and services; delivery DDP*
E8: Foundamentation | G8: 0 | H8: 0 | I8: 0 | J8: =F8-G8-H8-I8 -> 0 | N8: =C7*F7*$O$6 -> 0 | O8: =(100%-C7)*F7*$O$6 -> 0 | P8: =G8+H8+I8+N8 -> 0 | Q8: =J8+O8 -> 0 | R8: =P8+Q8 -> 0 | U8: =IF(SUM(P9:Q9)=Intro!#REF!,"True","False") ->  | V8: Conditional
E9: Construction and installation | F9: =Intro!S58 -> 170000 | G9: 0 | H9: 0 | I9: =F9 -> 170000 | J9: =F9-G9-H9-I9 -> 0 | N9: =C9*F9*$O$6 -> 0 | O9: =(100%-C9)*F9*$O$6 -> 0 | P9: =G9+H9+I9+N9 -> 170000 | Q9: =J9+O9 -> 0 | R9: =P9+Q9 -> 170000 | U9: =IF(SUM(P10:Q10)=Intro!S60,"True","False") -> False | V9: Loan "B" | W9: Could be up to 30% of original part of the export paid by
A10: =IF(SUM(G10:J10)=F10,"Ok","Fal") -> Ok | E10: Truck transport | F10: =Intro!S59 -> 150000 | G10: 0 | H10: 0 | I10: 140000 | J10: =F10-G10-H10-I10 -> 10000 | N10: =C10*F10*$O$6 -> 0 | O10: =(100%-C10)*F10*$O$6 -> 0 | P10: =G10+H10+I10+N10 -> 140000 | Q10: =J10+O10 -> 10000 | R10: =P10+Q10 -> 150000 | W10: Loan "A" Greenhouse base, assembling, infrastructure and
A11: Ø | E11: 1 Yr Supervision and training | F11: =Intro!S60+Intro!S61 -> 58500 | G11: 0 | H11: 0 | I11: 0 | J11: =F11-G11-H11-I11 -> 58500 | N11: =C10*F11*$O$6 -> 0 | O11: =(100%-C10)*F11*$O$6 -> 0 | P11: =G11+H11+I11+N11 -> 0 | Q11: 58500 | R11: =P11+Q11 -> 58500 | U11: =IF(SUM(#REF!)=Intro!S61,"True","False") ->  | W11: other LTAssets - all one-off local country costs (up to 30%
Q12: 0 | W12: of original part of export value)
N13: =C13*F30*$O$6 -> 0 | O13: =(100%-C13)*F30*$O$6 -> 0 | U13: =IF(SUM(P13:Q13)=Intro!S67,"True","False") -> True | V13: Loan "C" | W13: Permanent purchase of production materials and seasonal trade (conditionally - the start-up working materials)
B14: =IF(C15<=50%,"","M") ->  | E14: SubTOTAL: | F14: =SUM(F7:F13) -> 5228500 | G14: =SUM(G7:G13) -> 242500 | H14: =SUM(H7:H13) -> 350000 | I14: =SUM(I7:I13) -> 1310000 | J14: =SUM(J7:J13) -> 3326000 | N14: =SUM(N8:N13) -> 0 | O14: =SUM(O8:O13) -> 0 | P14: =SUM(P7:P13) -> 1902500 | Q14: =SUM(Q7:Q13) -> 3326000 | R14: =SUM(R7:R13) -> 5228500 | U14: =IF(F14=R14,"True","False") -> True
B15: =IF(C15<=50%,"C","") -> C | C15: =F20/F21 -> 0 | E15: ELIGIBLE FOREIGN CONTENT (Loan "A") | G15: Advance | J15: Balance | W15: Own funds (Loan "C"). Credit percentage down payment,
V16: Loan "D"
D17: =100%-D7 -> 1 | E17: Greenhouse Screening plots and materials | N17: =C17*F17*$O$6 -> 0 | O17: =(100%-C17)*F17*$O$6 -> 0 | P17: =I17+N17 -> 0 | Q17: 0 | R17: =P17+Q17 -> 0 | U17: =IF(SUM(P17:Q17)=Intro!S57*D17,"True","False") -> False | W17: when required (as ECA's practice)
E18: Plants, fertilizers, pesticides, substrate | N18: =C18*F18*$O$6 -> 0 | O18: =(100%-C18)*F18*$O$6 -> 0 | P18: 0 | Q18: 0 | R18: =P18+Q18 -> 0 | W18: Involve percentage of own funds, if required, in Cell O6
E19: Shipping | N19: =C19*F19*$O$6 -> 0 | O19: =(100%-C19)*F19*$O$6 -> 0 | P19: 0 | Q19: 0 | R19: =P19+Q19 -> 0 | W19: and click | X19: % button left
E20: SubTOTAL: | F20: =SUM(F17:F19) -> 0 | H20: =SUM(I17:I19) -> 0 | I20: =SUM(J17:J19) -> 0 | J20: =SUM(J17:J19) -> 0 | N20: =SUM(N17:N19) -> 0 | O20: =SUM(O17:O19) -> 0 | P20: =SUM(P17:P19) -> 0 | Q20: =SUM(Q17:Q19) -> 0 | R20: =SUM(R17:R19) -> 0 | V20: * DDP - Delivered duty paid
C21: Export | D21: =F21 -> 5228500 | E21: Loan "A", EXPORT VALUE, TOTAL: | F21: =F14+F20 -> 5228500 | G21: =G14+G20 -> 242500 | H21: 350000 | I21: =I14+I20 -> 1310000 | J21: =J14+J20 -> 3326000 | N21: =N14+N20 -> 0 | O21: =O14+O20 -> 0 | P21: =P14+P20 -> 1902500 | Q21: =Q14+Q20 -> 3326000 | R21: =R14+R20 -> 5228500 | U21: =IF((P21+Q21)=Intro!S56,"True","False") -> False
B23: B | D23: LOCAL COUNTRY COSTS (Loan "B") | L23: D | M23: → | N23: OWN FUNDS Loan "D" | P23: Loan "A" + "D" | R23: TOTAL | W23: Credit-bank Loan Tranches
C24: Adv.% 1st tranche | F24: Price | G24: =G5 -> 1st | H24: =H5 -> 2nd | I24: 3th | J24: 4 + 5 + 6 | N24: =O24 -> 0 | O24: =O6 -> 0 | P24: Advance | Q24: Balance | R24: Value | T24: → | X24: 1․ | Y24: 500000
C25: ↓ | D25: Capital investment | F25: =SUM(F26:F30) -> 508800 | G25: =ROUNDUP(SUM(G26:G30),-1) -> 56940 | H25: =ROUNDUP(SUM(H26:H30),-3) -> 90000 | I25: =SUM(I26:I30) -> 190860 | J25: =SUM(J26:J30) -> 171000 | N25: =SUM(N26:N30) -> 0 | O25: 0 | P25: =SUM(P26:P30) -> 337800 | Q25: =SUM(Q26:Q30) -> 171000 | R25: =SUM(R26:R30) -> 508800 | U25: =IF((P25+Q25)=R25,"True","False") -> True | X25: 2․ | Y25: 500000
A26: =IF(SUM(G26:J26)=F26,"Ok","Fal") -> Ok | C26: 0.1 | D26: Constructive drawings, permits - electricity, water, etc. | F26: =Intro!S49 -> 80000 | G26: =C26*F26 -> 8000 | H26: 0 | I26: =F26-G26 -> 72000 | J26: 0 | N26: =C26*F26*$O$24 -> 0 | O26: =(100%-C26)*F26*$O$6 -> 0 | P26: =G26+H26+I26+N26 -> 80000 | Q26: =J26+O26 -> 0 | R26: =P26+Q26 -> 80000 | U26: =IF(SUM(P26:Q26)=Intro!S50,"True","False") -> False | X26: 3․ | Y26: 1500000
A27: =IF(SUM(G27:J27)=F27,"Ok","Fal") -> Ok | C27: 0.12 | D27: Terrain, infrastructure - hedge, water § power supply | F27: =Intro!S50 -> 107800 | G27: =ROUND(C27*F27,-1) -> 12940 | H27: 50000 | I27: =F27-G27-H27 -> 44860 | J27: 0 | N27: =C27*F27*$O$24 -> 0 | O27: =(100%-C27)*F27*$O$6 -> 0 | P27: =G27+H27+I27+N27 -> 107800 | Q27: 0 | R27: =P27+Q27 -> 107800 | U27: =IF(SUM(P27:Q27)=Intro!#REF!,"True","False") -> 
A28: =IF(SUM(G28:J28)=F28,"Ok","Fa") -> Ok | C28: 0 | D28: Other unforeseen expenses - land, video control, etc. | F28: =Intro!S51 -> 60000 | G28: =$C$28*$F$28 -> 0 | H28: 40000 | I28: 20000 | J28: 0 | N28: =C28*F28*$O$24 -> 0 | O28: =(100%-C28)*F28*$O$6 -> 0 | P28: =G28+H28+I28+N28 -> 60000 | Q28: 0 | R28: =P28+Q28 -> 60000 | U28: =IF(SUM(P28:Q28)=Intro!S51,"OK","False") -> OK | X28: 4․ | Y28: 1500000
A29: Ø | C29: 0 | D29: One year - plants, fertilizers, pesticides, substrate | F29: =ROUNDUP(Intro!S55,-3) -> 171000 | G29: 0 | H29: 0 | I29: 0 | J29: =ROUNDDOWN(F29,-1) -> 171000 | N29: =C29*F29*$O$24 -> 0 | O29: =(100%-C29)*F29*$O$6 -> 0 | P29: =G29+H29+I29+N29 -> 0 | Q29: =J29+O29 -> 171000 | R29: =P29+Q29 -> 171000 | U29: =IF(SUM(P29:Q29)=Intro!S52,"True","False") -> False | X29: 5․ | Y29: 1000000
A30: =IF(SUM(G29:J29)=F29,"Ok","Fal") -> Ok | C30: 0.4 | D30: Bus and truck for staff and products | F30: =Intro!S52 -> 90000 | G30: =C30*F30 -> 36000 | H30: 0 | I30: =F30-G30-H30 -> 54000 | J30: 0 | N30: =C30*F30*$O$24 -> 0 | O30: =(100%-C30)*F30*$O$6 -> 0 | P30: 90000 | Q30: =J30+O30 -> 0 | R30: =P30+Q30 -> 90000 | X30: 6․ | Y30: 1000000
A31: =IF(SUM(G31:J31)=F31,"Ok","Fal") -> Ok | D31: Financial modeling package and OCFCS | F31: =SUM(F32:F33) -> 260000 | G31: =SUM(G32:G33) -> 200000 | H31: =SUM(H32:H33) -> 60000 | I31: =SUM(I32:I33) -> 0 | J31: =SUM(J32:J33) -> 0 | N31: =SUM(N32:N33) -> 0 | O31: =SUM(O32:O33) -> 0 | P31: =SUM(P32:P33) -> 260000 | Q31: =SUM(Q32:Q33) -> 0 | R31: =SUM(R32:R33) -> 260000 | U31: =IF((P31+Q31)=R31,"True","False") -> True | X31: SubTOTAL (4.+ 5.+ 6.): | Y31: =SUM(Y28:Y30) -> 3500000
C32: 0.8 | D32: Cash-flows, profitability & sensitivity analysis + | F32: =Intro!S53 -> 230000 | G32: =ROUND(C32*F32,-4) -> 180000 | H32: =F32-G32 -> 50000 | I32: 0 | J32: 0 | N32: =C32*F32*$O$6 -> 0 | O32: =(100%-C32)*F32*$O$6 -> 0 | P32: =G32+H32+I32+N32 -> 230000 | Q32: =J32+O32 -> 0 | R32: =P32+Q32 -> 230000 | U32: =IF(SUM(P32:Q32)=Intro!S53,"True","False") -> True | X32: TOTAL: | Y32: =SUM(Y24:Y26)+Y27+Y31 -> 6000000
B33: =IF(C34<=30%,"C","N") -> C | C33: 0.7 | D33: Financial risk assessment and management | F33: =Intro!S54 -> 30000 | G33: =ROUNDDOWN(C33*F33,-4) -> 20000 | H33: =F33-G33 -> 10000 | I33: 0 | J33: 0 | N33: =C33*F33*$O$6 -> 0 | O33: =(100%-C33)*F33*$O$6 -> 0 | P33: 30000 | Q33: =J33+O33 -> 0 | R33: =P33+Q33 -> 30000 | U33: =IF(SUM(P33:Q33)=Intro!S54,"True","False") -> True
C34: =F34/F21 -> 0.1470402601 | E34: LOCAL COUNTRY COSTS (LCC), TOTAL: | F34: =F25+F31 -> 768800 | G34: =ROUND(G25+G31,-1) -> 256940 | H34: =ROUND(H25+H31,-1) -> 150000 | I34: =I25+I31 -> 190860 | J34: =J25+J31 -> 171000 | N34: =N25+N31 -> 0 | O34: =O25+O31 -> 0 | P34: =P25+P31 -> 597800 | Q34: =Q25+Q31 -> 171000 | R34: =R25+R31 -> 768800 | U34: =IF(SUM(P34:Q34)=R34,"True","False") -> True
E36: Import + Local Costs: | F36: =ROUNDUP(SUM(F21+F34),-4) -> 6000000 | G36: =ROUNDUP(SUM(G21+G34),-4) -> 500000 | H36: =H21+H34 -> 500000 | I36: =ROUNDDOWN(SUM(I21+I34),-3) -> 1500000 | J36: =ROUNDUP(SUM(J21+J34),-4) -> 3500000 | L36: D | M36: → | N36: =N21+N34 -> 0 | O36: =O21+O34 -> 0 | P36: =ROUNDDOWN(SUM(P21+P34),-3) -> 2500000 | Q36: =ROUNDUP(SUM(J21+J34),-4) -> 3500000 | R36: =ROUNDUP(SUM(R21+R34),-4) -> 6000000
N37: Loan "D" | O37: =N36+O36 -> 0 | Q37: Working Capital → | R37: 20000
C38: 0.001 | E38: Ann. Interests: | H38: 0.04 | I38: =H38 -> 0.04 | N38: 0.055
A39: Ø | C39: INSURANCE | E39: DEPRECIATION OF ASSETS | H39: Price | I39: =SUM(I40:I45) -> 798500 | M39: KEY NOTES:
C40: 0.001 | D40: =C40*H40 -> 4850 | E40: up to; for industry equipment | F40: 0.16 | H40: =F7+F17 -> 4850000 | I40: =H40*F40 -> 776000 | L40: 1 | N40: *Gradients | O40: in Cells | P40: temporary put an approximate value in it without document background and
A41: Ø | E41: Building | F41: 0.04 | N41: supported | O41: in Cells | P41: values with document. Icon - for URL to data resource.
A42: Ø | L42: 2 | N42: The icons or ride at Internet sources.
A43: Ø | C43: 0.02 | D43: =C43*H43 -> 1800 | E43: Motor car | F43: 0.25 | H43: =F30 -> 90000 | I43: =F43*H43 -> 22500 | L43: 3 | N43: Info icons | O43: provides link to author's information sources.
A44: Ø | F44: 0.25 | L44: 4 | N44: Various fonts and background colors represent similar group data resources.
A45: Ø | D45: =SUM(D40:D44) -> 6650 | E45: Intangible assets (Fin. modeling) | L45: 5 | N45: It's recommendable to follow these indications in order to facilitate the structure identification. | X45: Go to BUDGET and Financial analyzes

Sheet BUDGET
A1: [ Level① | B1: PRE-DESIGN BACKGROUND. | C1: Sales | D1: Jan | E1: Feb | F1: 2016-03-31 | G1: 2016-04-30 | H1: 2016-05-31 | I1: 2015-06-30 | J1: 2015-07-31 | K1: 2015-08-31 | L1: 2015-09-30 | M1: 2015-10-31 | N1: 2015-11-30 | O1: 2015-12-31 | P1: i TOTAL p.a.i | Q1: =($Q$2/Intro!U39+$Q$3/Intro!U40)/2 -> 0.5769066315 | R1: =($R$2/Intro!U39+$R$3/Intro!U40)/2 -> 0.4230933685
A2: Back | B2: Value of production | C2: IncomeTx Mo | D2: =Intro!I39 -> 0 | E2: =Intro!J39 -> 0 | F2: =Intro!K39 -> 257463.36 | G2: =Intro!L39 -> 362789.28 | H2: =Intro!M39 -> 310194.36 | I2: =Intro!N39 -> 205571.52 | J2: =Intro!O39 -> 182776.1922 | K2: =Intro!P39 -> 148916.88 | L2: =Intro!Q39 -> 149688 | M2: =Intro!R39 -> 187608.96 | N2: =Intro!S39 -> 82668.6 | O2: =Intro!T39 -> 63866.88 | P2: =SUM(D2:O2) -> 1951544.032 | Q2: =SUM(D2:I2) -> 1136018.52 | R2: =SUM(J2:O2) -> 815525.5122 | V2: =Q2+R2 -> 1951544.032
A3: From Level 0 | B3: Business Plan | C3: IncomeCx Mo | D3: =Intro!I40 -> 0 | E3: =Intro!J40 -> 50017.44384 | F3: =Intro!K40 -> 102108.3638 | G3: =Intro!L40 -> 129133.0958 | H3: =Intro!M40 -> 29639.67552 | I3: =Intro!N40 -> 85250.0376 | J3: =Intro!O40 -> 70033.60224 | K3: =Intro!P40 -> 77846.51952 | L3: =Intro!Q40 -> 18060.21504 | M3: =Intro!R40 -> 50625.792 | N3: =Intro!S40 -> 66162.096 | O3: =Intro!T40 -> 14053.3848 | P3: =SUM(D3:O3) -> 692930.2262 | Q3: =SUM(D3:I3) -> 396148.6166 | R3: =SUM(J3:O3) -> 296781.6096
A4: =Intro!U47 -> 5446863.284 | B4:  Lender/Insurer (Loan "A") | C4: Var. Costs | D4: 1 | E4: =D4+1 -> 2 | F4: =E4+1 -> 3 | G4: 4 | H4: 5 | I4: 6 | J4: 7 | K4: 8 | L4: 9 | M4: 10 | N4: 11 | O4: 12 | Q4: =(Q5/P5+Q6/P6)/2 -> 0.5615236984 | R4: =(R5/P5+R6/P6)/2 -> 0.4384763016
A5: =Intro!V48 -> 768363.2836 | B5:  Local Country Costs +VAT | C5: Heating | D5: =Intro!I42 -> 27091.85325 | E5: =Intro!J42 -> 24628.99602 | F5: =Intro!K42 -> 20926.94224 | G5: =Intro!L42 -> 16008.85447 | H5: =Intro!M42 -> 7345.118369 | I5: =Intro!N42 -> 0 | J5: =Intro!O42 -> 0 | K5: =Intro!P42 -> 0 | L5: =Intro!Q42 -> 0 | M5: =Intro!R42 -> 12314.47447 | N5: =Intro!S42 -> 18471.71171 | O5: =Intro!T42 -> 20934.61601 | P5: =SUM(D5:O5) -> 147722.5665 | Q5: =SUM(D5:I5) -> 96001.76435 | R5: =SUM(J5:O5) -> 51720.80219
C6: Packing | D6: =Intro!I43 -> 0 | E6: =Intro!J43 -> 1886.976 | F6: =Intro!K43 -> 11405.572 | G6: =Intro!L43 -> 19650.754 | H6: =Intro!M43 -> 18955.508 | I6: =Intro!N43 -> 24526.97 | J6: =Intro!O43 -> 25988.492 | K6: =Intro!P43 -> 23252.038 | L6: =Intro!Q43 -> 14303.724 | M6: =Intro!R43 -> 11266.096 | N6: =Intro!S43 -> 6525.09 | O6: =Intro!T43 -> 3757.91 | P6: =SUM(D6:O6) -> 161519.13 | Q6: =SUM(D6:I6) -> 76425.78 | R6: =SUM(J6:O6) -> 85093.35
C7: Running costs | P7: =SUM(D7:O7) -> 0 | Q7: =SUM(D7:I7) -> 0 | R7: =SUM(J7:O7) -> 0
C8: 1 Yr Oper. Costs | D8: T Fertilizers C | F8: T+C Seeds | G8: Substrate | H8: 1-6 Water+Electricity 7-12 | J8: 1-6 SubTotal | K8: 7-12 SubTotal | L8: ß 1-Yr biennially 2 Yr à | N8: 1-6 Mo All Costs 7-12 Mo | P8: =SUM(P5:P7) -> 309241.6965 | Q8: =SUM(Q5:Q7) -> 172427.5444 | R8: =SUM(R5:R7) -> 136814.1522
C9: =Intro!M16 -> 4 | D9: =Intro!H52 -> 22518.68657 | E9: =Intro!H53 -> 9650.865672 | F9: =Intro!H56 -> 78041.79104 | G9: =Intro!H59 -> 30175.97015 | H9: =Intro!O55 -> 45979.2 | I9: =Intro!O61 -> 28420.8 | J9: =SUM(D9:G9)/2+H9 -> 116172.8567 | K9: =SUM(D9:G9)/2+I9 -> 98614.45672 | L9: ←WITH | M9: WITHOUT→ | N9: =SUM(D9:F9)/2+H9 -> 101084.8716 | O9: =SUM(D9:F9)/2+I9 -> 83526.47164 | Q9: ❶ 30 Jun | R9: 31 Dec ❷
C10: Market products | D10: 0 | E10: 0 | F10: 0 | G10: 20000 | H10: 30000 | I10: 40000 | J10: 50000 | K10: 40000 | L10: 30000 | M10: 30000 | N10: 0 | O10: 0 | P10: =SUM(D10:O10) -> 240000 | Q10: =SUM(D10:I10) -> 90000 | R10: =SUM(J10:O10) -> 150000
A11: From [ Level① | C11: Nr of Periods | D11: 1 | E11: =D11+1 -> 2 | F11: 3 | G11: 4 | H11: 5 | I11: 6 | J11: 7 | K11: 8 | L11: 9 | M11: 10 | N11: 11 | O11: 12 | P11: 13 | Q11: 14 | R11: =Q11+1 -> 15 | S11: =R11+1 -> 16
C12: Nr of Monts | D12: 6 | E12: =D12+6 -> 12 | F12: 18 | G12: 24 | H12: 30 | I12: 36 | J12: 42 | K12: =J12+6 -> 48 | L12: 54 | M12: 60 | N12: 66 | O12: 72 | P12: 78 | Q12: 84 | R12: 90 | S12: =R12+6 -> 96
B13: Repayment periods | C13: Date: | D13: 2019-12-30 | E13: 2020-06-30 | F13: 2020-12-31 | G13: 2021-06-30 | H13: 2021-12-31 | I13: 2022-06-30 | J13: 2022-12-31 | K13: 2023-06-30 | L13: 2023-12-31 | M13: 2024-06-30 | N13: 2024-12-31 | O13: 2025-06-30 | P13: 2025-12-31 | Q13: 2026-06-30 | R13: 2026-12-31 | S13: 2027-06-30
A14: ='Cap.Goods'!O37 -> 0 | B14:  Own Funds Loan "D" | J14: Level ②
A15: =Intro!T51 -> 0 | B15:  VAT of Loans "A"+"B" Return↔ | D15: =Intro!$T$51 -> 0 | E15: =-A15 -> 0
A16: ='Cap.Goods'!R21 -> 5228500 | B16: Export of cap. goods | C16: =SUM(D16:F16) -> 5228500 | D16: ='Cap.Goods'!P21 -> 1902500 | E16: ='Cap.Goods'!Q21 -> 3326000
A17: ='Cap.Goods'!R34 -> 768800 | B17: Local country costs | C17: =SUM(D17:F17) -> 768800 | D17: ='Cap.Goods'!P34 -> 597800 | E17: ='Cap.Goods'!Q34 -> 171000
A18: ='Cap.Goods'!R36 -> 6000000 | B18: Capital Investment | C18: =SUM(D18:F18) -> 5997300 | D18: =SUM(D15:D17) -> 2500300 | E18: =SUM(E15:E17) -> 3497000
B19:  Working Capital (Loan"C") | C19: =SUM(F19:Q19) -> 1440000 | F19: =Q10 -> 90000 | G19: =$R$10 -> 150000 | H19: =$Q$10 -> 90000 | I19: =$R$10 -> 150000 | J19: =$Q$10 -> 90000 | K19: =$R$10 -> 150000 | L19: =$Q$10 -> 90000 | M19: =$R$10 -> 150000 | N19: =$Q$10 -> 90000 | O19: =$R$10 -> 150000 | P19: =$Q$10 -> 90000 | Q19: =$R$10 -> 150000 | R19: =$Q$10 -> 90000 | S19: =$R$10 -> 150000
A20: Sales, | B20: Revenue Pro-forma Budget | C20: =SUM(F20:Q20) -> 17638643.3 | D20: =D44 -> 0 | E20: 0 | F20: =F44 -> 1501523.794 | G20: =G44 -> 1090060.979 | H20: =H44 -> 1532167.137 | I20: 1112307.122 | J20: 1639418.836 | K20: =K44 -> 1190168.62 | L20: 1761992.207 | M20: 1279153.19 | N20: 1869243.907 | O20: 1357014.689 | P20: 1915208.921 | Q20: =Q44 -> 1390383.902 | R20: =R44 -> 1532167.137 | S20: =S44 -> 1412630.045
A21: Less: | C21: Date: | D21: =D13 -> 2019-12-30 | E21: 2020-06-30 | F21: 2020-12-31 | G21: 2021-06-30 | H21: 2021-12-31 | I21: 2022-06-30 | J21: 2022-12-31 | K21: 2023-06-30 | L21: 2023-12-31 | M21: 2024-06-30 | N21: 2024-12-31 | O21: 2025-06-30 | P21: 2025-12-31 | Q21: 2026-06-30 | R21: 2026-12-31 | S21: 2027-06-30
A22: Costs, | B22: TOTAL (in €) | C22: =SUM(D22:S22) -> 10749172.93 | D22: =SUM(D23:D26) -> 9400 | E22: =SUM(E23:E26) -> 21700 | F22: 226813.6391 | G22: =SUM(G23:G26) -> 1126346.208 | H22: =SUM(H23:H26) -> 461986.6611 | I22: 1212037.404 | J22: 479239.3711 | K22: 1229319.338 | L22: =SUM(L23:L26) -> 466345.3348 | M22: 1216454.92 | N22: 483656.887 | O22: 1211296.491 | P22: 470822.4872 | Q22: 1198492.514 | R22: 480407.3584 | S22: 454854.3142
B23: Variable costs | C23: =SUM(D23:Q23) -> 2862858.836 | D23: =D55 -> 0 | E23: =E55 -> 0 | F23: =F55 -> 174673.6391 | G23: =G55 -> 138568.0574 | H23: =H55 -> 275758.5108 | I23: =I55 -> 222094.529 | J23: 290846.4959 | K23: 237182.5141 | L23: 275758.5108 | M23: 222094.529 | N23: 290846.4959 | O23: 237182.5141 | P23: 275758.5108 | Q23: 222094.529 | R23: =R55 -> 289723.4485 | S23: =S55 -> 236305.5615
B24: Fixed costs | C24: =SUM(D24:Q24) -> 2131747.593 | D24: =D59 -> 9400 | E24: =E59 -> 21700 | F24: 52140 | G24: =G59 -> 182614.0751 | H24: 179564.0751 | I24: 184778.8001 | J24: 181728.8001 | K24: 186972.7489 | L24: 183922.7489 | M24: 189196.316 | N24: 186146.316 | O24: 191449.9013 | P24: 188399.9013 | Q24: 193733.9099 | R24: 184019.8348 | S24: 189384.6776
B25: Marketing & Risk Mngmt | C25: =SUM(D25:S25) -> 86632.97671 | D25: =D65 -> 0 | E25: 0 | F25: 0 | G25: =G65 -> 6664.075131 | H25: =H65 -> 6664.075131 | I25: 6664.075131 | J25: 6664.075131 | K25: 6664.075131 | L25: 6664.075131 | M25: 6664.075131 | N25: 6664.075131 | O25: 6664.075131 | P25: 6664.075131 | Q25: 6664.075131 | R25: 6664.075131 | S25: 6664.075131
A26: ='Cap.Goods'!I39 -> 798500 | B26: Depreciations | G26: ='Cap.Goods'!$I$40+'Cap.Goods'!I43 -> 798500 | I26: =G26 -> 798500 | K26: =G26 -> 798500 | M26: =G26 -> 798500 | O26: ='Cap.Goods'!I40 -> 776000 | Q26: =O26 -> 776000 | S26: ='Cap.Goods'!I43+'Cap.Goods'!I44 -> 22500
B27: Cash Flows (EBIT) | D27: =D20-D22 -> -9400 | E27: -21700 | F27: 1274710.155 | G27: -36285.2283 | H27: 1070180.476 | I27: -99730.2825 | J27: 1160179.465 | K27: =K20-K22 -> -39150.71784 | L27: 1295646.872 | M27: 62698.26989 | N27: 1385587.02 | O27: 145718.1981 | P27: =P20-P22 -> 1444386.434 | Q27: =Q20-Q22 -> 191891.3882 | R27: =R20-R22 -> 1051759.778 | S27: =S20-S22 -> 957775.7305 | U27: =SUM(D27:Q27) -> 7824732.049
A28: Less: | B28: Interests Loans "A" + "B" | D28: =D86+D91+D96 -> 0 | E28: 11956 | F28: 14487 | G28: =G86+G91+G96 -> 118150 | H28: =H86+H91+H96 -> 110679 | I28: =I86+I91+I96 -> 96606 | J28: =J86+J91+J96 -> 83236 | K28: 70620 | L28: 58816 | M28: 47883 | N28: 37883 | O28: 28881 | P28: 20946 | Q28: =Q86+Q91+Q96 -> 14149 | R28: =R86+R91+R96 -> 8566 | S28: =S86+S91+S96 -> 4274 | U28: =SUM(D28:Q28) -> 714292
B29: EBT | D29: =D27-D28 -> -9400 | E29: -33656 | F29: 1260223.155 | G29: =G27-G28 -> -154435.2283 | H29: =H27-H28 -> 959501.4756 | I29: =I27-I28 -> -196336.2825 | J29: 1076943.465 | K29: -109770.7178 | L29: 1236830.872 | M29: 14815.26989 | N29: 1347704.02 | O29: 116837.1981 | P29: =P27-P28 -> 1423440.434 | Q29: =Q27-Q28 -> 177742.3882 | R29: =R27-R28 -> 1043193.778 | S29: =S27-S28 -> 953501.7305 | U29: =SUM(D29:Q29) -> 7110440.049 | V29: =U29/$Q$12 -> 84648.09582
A30: Less: | B30: Income tax | C30: 0.08 | G30: =(D29+E29+F29)*C30 -> 97373.37238 | I30: =(G29+H29)*$C$30-H31 -> 15718.61359 | K30: =(I29+J29)*$C$30-J31 -> 62589.26781 | M30: =(K29+L29)*$C$30-L31 -> 58870.17845 | O30: =(M29+N29)*$C$30-N31 -> 79566.45394 | Q30: =(O29+P29)*$C$30-P31 -> 83438.98357 | S30: =(Q29+R29)*$C$30-R31 -> 55955.40153 | U30: =SUM(D26:Q26) -> 4746000
B31: Advance deposit | H31: =G30/2 -> 48686.68619 | J31: =I30/2 -> 7859.306797 | L31: =K30/2 -> 31294.6339 | N31: =M30/2 -> 29435.08923 | P31: =O30/2 -> 39783.22697 | R31: =Q30/2 -> 41719.49178 | U31: =SUM(U29:U30) -> 11856440.05
B32: EAT | C32: =SUM(D32:Q32) -> 6555824.236 | D32: =D29-D30-D31 -> -9400 | E32: -33656 | F32: 1260223.155 | G32: -251808.6007 | H32: 910814.7894 | I32: -212054.8961 | J32: 1069084.158 | K32: -172359.9856 | L32: 1205536.238 | M32: -44054.90857 | N32: =N29-N30-N31 -> 1318268.93 | O32: 37270.74414 | P32: 1383657.207 | Q32: 94303.40459 | R32: 1001474.286 | S32: 897546.329 | U32: =SUM(D32:Q32) -> 6555824.236 | V32: =U32/$Q$12 -> 78045.52662
A33: Add: | B33: Total depreciations | E33: =E26 -> 0 | G33: =G26 -> 798500 | H33: =H26 -> 0 | I33: 798500 | J33: 0 | K33: 798500 | L33: 0 | M33: 798500 | N33: 0 | O33: 776000 | P33: 0 | Q33: 776000
A34: Add: | B34: Tax advance deposited
A35: ► | B35: Operating Cash Flows | C35: =SUM(D35:S35) -> 13200844.85 | D35: =SUM(D32:D34) -> -9400 | E35: -33656 | F35: 1260223.155 | G35: =SUM(G32:G34) -> 546691.3993 | H35: =SUM(H32:H34) -> 910814.7894 | I35: =SUM(I32:I34) -> 586445.1039 | J35: 1069084.158 | K35: 626140.0144 | L35: =SUM(L32:L34) -> 1205536.238 | M35: 754445.0914 | N35: 1318268.93 | O35: 813270.7441 | P35: 1383657.207 | Q35: 870303.4046 | R35: =SUM(R32:R34) -> 1001474.286 | S35: =SUM(S32:S34) -> 897546.329
A36: Less: | D36: =-D18 -> -2500300 | E36: =-E18 -> -3497000 | F36: =-F18 -> 0
A37: ► (NCFs) | B37: Project's Net Cash Flows | C37: =SUM(D37:S37) -> 7203544.851 | D37: =D35+D36 -> -2509700 | E37: =E35+E36 -> -3530656 | F37: 1260223.155 | G37: =G35+G36 -> 546691.3993 | H37: =H35+H36 -> 910814.7894 | I37: =I35+I36 -> 586445.1039 | J37: 1069084.158 | K37: 626140.0144 | L37: 1205536.238 | M37: 754445.0914 | N37: 1318268.93 | O37: 813270.7441 | P37: =P35+P36 -> 1383657.207 | Q37: =Q35+Q36 -> 870303.4046 | R37: =R35+R36 -> 1001474.286 | S37: =S35+S36 -> 897546.329
A38: Less: Loans— | B38: Installments (principal + interest) | D38: =-(D88+D93+D98-D28) -> 0 | E38: =-(E88+E93+E98-E28) -> 0 | F38: =-(F88+F93+F98-F28) -> 0 | G38: =-(G88+G93+G98-G28) -> -375442 | H38: =-(H88+H93+H98-H28) -> -382952 | I38: -390611 | J38: -398423 | K38: -406392 | L38: -414520 | M38: -422809 | N38: -431265 | O38: -439891 | P38: -448689 | Q38: -457662 | R38: -466816 | S38: -476152 | V38: =SUM(D38:Q38) -> -4568656
B39: Cash | D39: =D37+D38 -> -2509700 | E39: -3530656 | F39: 1260223.155 | G39: 171249.3993 | H39: =H37+H38 -> 527862.7894 | I39: 195834.1039 | J39: =J37+J38 -> 670661.1583 | K39: =K37+K38 -> 219748.0144 | L39: =L37+L38 -> 791016.2384 | M39: 331636.0914 | N39: 887003.9305 | O39: 373379.7441 | P39: 934968.2066 | Q39: 412641.4046 | R39: 534658.2865 | S39: 421394.329
A40: Cumulative NCFs (loan pay-off incl.) | C40: → | D40: =D39 -> -2509700 | E40: =D40+E39 -> -6040356 | F40: =E40+F39 -> -4780132.845 | G40: =F40+G39 -> -4608883.446 | H40: =G40+H39 -> -4081020.657 | I40: =H40+I39 -> -3885186.553 | J40: -3214525.394 | K40: -2994777.38 | L40: -2203761.142 | M40: -1872125.05 | N40: -985121.1197 | O40: =N40+O39 -> -611741.3755 | P40: =O40+P39 -> 323226.8311 | Q40: =P40+Q39 -> 735868.2357 | R40: =Q40+R39 -> 1270526.522 | S40: =R40+S39 -> 1691920.851
B41: Years : | D41: → | F41: -0.02 | G41: =E41+1 -> 1 | H41: 0 | I41: =G41+1 -> 2 | J41: =H41+7% -> 0.07 | K41: =I41+1 -> 3 | L41: =J41+8% -> 0.15 | M41: =K41+1 -> 4 | N41: =L41+7% -> 0.22 | O41: =M41+1 -> 5 | P41: =N41+3% -> 0.25 | Q41: =O41+1 -> 6 | R41: =P41+2% -> 0.27 | S41: =Q41+1 -> 7
A43: Income data. Selected year <+>: | C43: Calendar year | D43: =D13 -> 2019-12-30 | E43: 2020-06-30 | F43: 2020-12-31 | G43: 2021-06-30 | H43: 2021-12-31 | I43: 2022-06-30 | J43: 2022-12-31 | K43: 2023-06-30 | L43: 2023-12-31 | M43: 2024-06-30 | N43: 2024-12-31 | O43: 2025-06-30 | P43: 2025-12-31 | Q43: 2026-06-30 | R43: 2026-12-31 | S43: 2027-06-30
A44: =SUM(F44:Q44) -> 17638643.3 | B44: Sales | F44: =F45 -> 1501523.794 | G44: 1090060.979 | H44: 1532167.137 | I44: 1112307.122 | J44: 1639418.836 | K44: 1190168.62 | L44: 1761992.207 | M44: 1279153.19 | N44: 1869243.907 | O44: 1357014.689 | P44: 1915208.921 | Q44: 1390383.902 | R44: =R45 -> 1532167.137 | S44: =S45 -> 1412630.045
B45: ● Greenhouse own production | F45: =SUM(F46:F47) -> 1501523.794 | G45: =SUM(G46:G47) -> 1090060.979 | H45: 1532167.137 | I45: 1112307.122 | J45: 1639418.836 | K45: 1190168.62 | L45: 1761992.207 | M45: 1279153.19 | N45: 1869243.907 | O45: 1357014.689 | P45: 1915208.921 | Q45: 1390383.902 | R45: =SUM(R46:R48) -> 1532167.137 | S45: =SUM(S46:S48) -> 1412630.045
B46: • Tomatoes | F46: =Q2*(1+$F$41) -> 1113298.15 | G46: =R2*(1+$F$41) -> 799215.002 | H46: =$Q$2 -> 1136018.52 | I46: =$R$2 -> 815525.5122 | J46: =$Q$2*(1+J41) -> 1215539.816 | K46: =$R$2*(1+J41) -> 872612.2981 | L46: =$Q$2*(1+L41) -> 1306421.298 | M46: =$R$2*(1+L41) -> 937854.339 | N46: =$Q$2*(1+N41) -> 1385942.594 | O46: =$R$2*(1+N41) -> 994941.1249 | P46: =$Q$2*(1+P41) -> 1420023.15 | Q46: =$R$2*(1+P41) -> 1019406.89 | R46: =$Q$2 -> 1136018.52 | S46: =$R$2*(1+R41) -> 1035717.4
B47: • Cucumbers | F47: =Q3*(1+$F$41) -> 388225.6443 | G47: =R3*(1+$F$41) -> 290845.9774 | H47: =$Q$3 -> 396148.6166 | I47: =$R$3 -> 296781.6096 | J47: =$Q$3*(1+J41) -> 423879.0198 | K47: =$R$3*(1+J41) -> 317556.3223 | L47: =$Q$3*(1+L41) -> 455570.9091 | M47: =$R$3*(1+L41) -> 341298.851 | N47: =$Q$3*(1+N41) -> 483301.3123 | O47: =$R$3*(1+N41) -> 362073.5637 | P47: =$Q$3*(1+P41) -> 495185.7708 | Q47: =$R$3*(1+P41) -> 370977.012 | R47: =$Q$3 -> 396148.6166 | S47: =$R$3*(1+R41) -> 376912.6442
B48: • By-products
A49: OPERATIONAL AND RISK MANAGEMENT | C49: Option: Funding | E49: 1000 | F49: 0.5 | G49: 0.3 | H49: 0.2 | I49: =$E$49*F49 -> 500 | J49: =$E$49*G49 -> 300 | K49: =$E$49*H49 -> 200 | L49: 0
B50: Dynamic structure of new loan with | C50: 0.06 | D50: Select and | E50: ↑ ENTER ↑ | H50: New debt to add to the Costs→ | I50: 0 | J50: =I49*(1+$C$50/2) -> 515 | K50: =J49*(1+$C$50/2) -> 309 | L50: =K49*(1+$C$50/2) -> 206
A51: Sales, | B51: Current accounting reports
A52: Costs, | B52: TOTAL accounting reports
A53: OCFCS | B53: Cash Flow Statements ‒ | C53: Аccounting
B54: Income data (in €), EU Zone Periods: | C54: =C13 -> Date: | D54: =D13 -> 2019-12-30 | E54: 2020-06-30 | F54: 2020-12-31 | G54: 2021-06-30 | H54: 2021-12-31 | I54: 2022-06-30 | J54: 2022-12-31 | K54: 2023-06-30 | L54: 2023-12-31 | M54: 2024-06-30 | N54: 2024-12-31 | O54: 2025-06-30 | P54: 2025-12-31 | Q54: 2026-06-30 | R54: 2026-12-31 | S54: 2027-06-30
B55: Variable costs | C55: =SUM(D55:S55) -> 3388887.846 | D55: =SUM(D56:D58) -> 0 | E55: =SUM(E56:E58) -> 0 | F55: =SUM(F56:F58)-F57 -> 174673.6391 | G55: =SUM(G56:G58)-G57 -> 138568.0574 | H55: =SUM(H56:H58) -> 275758.5108 | I55: =SUM(I56:I58) -> 222094.529 | J55: =SUM(J56:J58) -> 290846.4959 | K55: 237182.5141 | L55: 275758.5108 | M55: 222094.529 | N55: 290846.4959 | O55: =SUM(O56:O58) -> 237182.5141 | P55: 275758.5108 | Q55: 222094.529 | R55: 289723.4485 | S55: 236305.5615
A56: =Q8 -> 172427.5444 | B56: 1st Heating, packing, running costs 2nd | C56: =R8 -> 136814.1522 | D56: 0 | E56: 0 | F56: =$A$56 -> 172427.5444 | G56: =$C$56 -> 136814.1522 | H56: =$A$56 -> 172427.5444 | I56: =$C$56 -> 136814.1522 | J56: =$A$56 -> 172427.5444 | K56: =$C$56 -> 136814.1522 | L56: =$A$56 -> 172427.5444 | M56: =$C$56 -> 136814.1522 | N56: =$A$56 -> 172427.5444 | O56: =$C$56 -> 136814.1522 | P56: =$A$56 -> 172427.5444 | Q56: =$C$56 -> 136814.1522 | R56: =$A$56 -> 172427.5444 | S56: =$C$56 -> 136814.1522
B57: Operat. costs ̶ fertilizers, substrate, etc. | D57: 0 | E57: 0 | F57: =H9 -> 45979.2 | G57: =I9 -> 28420.8 | H57: =$N$9 -> 101084.8716 | I57: =$O$9 -> 83526.47164 | J57: =$J$9 -> 116172.8567 | K57: =$K$9 -> 98614.45672 | L57: =$N$9 -> 101084.8716 | M57: =$O$9 -> 83526.47164 | N57: =$J$9 -> 116172.8567 | O57: =$K$9 -> 98614.45672 | P57: =$N$9 -> 101084.8716 | Q57: =$O$9 -> 83526.47164 | R57: =$J$9 -> 116172.8567 | S57: =$K$9 -> 98614.45672
A58: 2000 | B58: p.ann./ha. Other materials and services | F58: =$A$58/2*$C$9*$Q$4 -> 2246.094793 | G58: =$A$58/2*$C$9*$R$4 -> 1753.905207 | H58: =$A$58/2*$C$9*$Q$4 -> 2246.094793 | I58: =$A$58/2*$C$9*$R$4 -> 1753.905207 | J58: =$A$58/2*$C$9*$Q$4 -> 2246.094793 | K58: =$A$58/2*$C$9*$R$4 -> 1753.905207 | L58: =$A$58/2*$C$9*$Q$4 -> 2246.094793 | M58: =$A$58/2*$C$9*$R$4 -> 1753.905207 | N58: =$A$58/2*$C$9*$Q$4 -> 2246.094793 | O58: =$A$58/2*$C$9*$R$4 -> 1753.905207 | P58: =$A$58/2*$C$9*$Q$4 -> 2246.094793 | Q58: =$A$58/2*$C$9*$R$4 -> 1753.905207 | R58: =$A$58*$Q$4 -> 1123.047397 | S58: =$A$58*$R$4 -> 876.9526033
B59: Fixed costs | C59: =SUM(D59:S59) -> 2505152.105 | D59: =SUM(D60:D65) -> 9400 | E59: =SUM(E60:E65) -> 21700 | F59: =SUM(F60:F65) -> 52140 | G59: =SUM(G60:G65) -> 182614.0751 | H59: =SUM(H60:H65) -> 179564.0751 | I59: 184778.8001 | J59: 181728.8001 | K59: 186972.7489 | L59: 183922.7489 | M59: 189196.316 | N59: 186146.316 | O59: 191449.9013 | P59: 188399.9013 | Q59: 193733.9099 | R59: =SUM(R60:R64) -> 184019.8348 | S59: =SUM(S60:S64) -> 189384.6776
A60: 100 | B60: Office - phones, internet, rent, power | D60: 100 | E60: 200 | F60: 240 | G60: =$A$60/2 -> 50 | H60: 50 | I60: 50 | J60: 50 | K60: 50 | L60: 50 | M60: 50 | N60: 50 | O60: 50 | P60: 50 | Q60: 50 | R60: 50 | S60: 50
A61: 3200 | B61: Cars - fuel and maintenance | D61: 0 | E61: 100 | F61: 200 | G61: =$A$61/2 -> 1600 | H61: =$A$61/2 -> 1600 | I61: 1600 | J61: 1600 | K61: 1600 | L61: 1600 | M61: 1600 | N61: 1600 | O61: 1600 | P61: 1600 | Q61: 1600 | R61: 1600 | S61: 1600
A62: 18200 | B62: Fin. reporting, Online Cash-Flow Control System | D62: 0 | E62: 1000 | F62: =$A$62/2 -> 9100 | G62: =$A$62/2 -> 9100 | H62: 9100 | I62: 9100 | J62: 9100 | K62: 9100 | L62: 9100 | M62: 9100 | N62: 9100 | O62: 9100 | P62: 9100 | Q62: 9100 | R62: 9100 | S62: 9100
A63: 0.027 | B63: Payroll, administration, p. ann. | C63: =Staff!G33 -> 320700 | D63: =(Staff!F9+Staff!F19+Staff!F22)*3 -> 9300 | E63: =(Staff!F9+Staff!F19+Staff!F22)*6 -> 18600 | F63: =(Staff!F9+Staff!F19+Staff!F20+Staff!F22+Staff!F24+Staff!F25*4)*6 -> 40800 | G63: =$C$63/2 -> 160350 | H63: =$C$63/2 -> 160350 | I63: =G63*(1+$A$63/2) -> 162514.725 | J63: 162514.725 | K63: 164708.6738 | L63: 164708.6738 | M63: 166932.2409 | N63: 166932.2409 | O63: 169185.8261 | P63: 169185.8261 | Q63: 171469.8348 | R63: 171469.8348 | S63: 173784.6776
A64: ='Cap.Goods'!D45 -> 6650 | B64: Insurance of building, products, cars | E64: ='Cap.Goods'!D43 -> 1800 | F64: ='Cap.Goods'!$D$43 -> 1800 | G64: =$A$64-$F$64 -> 4850 | H64: ='Cap.Goods'!$D$43 -> 1800 | I64: =$A$64-$F$64 -> 4850 | J64: ='Cap.Goods'!$D$43 -> 1800 | K64: =$A$64-$F$64 -> 4850 | L64: ='Cap.Goods'!$D$43 -> 1800 | M64: =$A$64-$F$64 -> 4850 | N64: ='Cap.Goods'!$D$43 -> 1800 | O64: =$A$64-$F$64 -> 4850 | P64: ='Cap.Goods'!$D$43 -> 1800 | Q64: =$A$64-$F$64 -> 4850 | R64: ='Cap.Goods'!$D$43 -> 1800 | S64: =$A$64-$F$64 -> 4850
A65: =0.12%*M78 -> 0.00252 | B65: of sales - marketing, exhibitions | C65: =Intro!U41 -> 2644474.258 | G65: =IF(AND($M$76>$A$67,G54>F54),$A$65*$C$65,F65) -> 6664.075131 | H65: =IF(AND($M$76>$A$67,H54>G54),$A$65*$C$65,G65) -> 6664.075131 | I65: 6664.075131 | J65: =IF(AND($M$76>$A$67,J54>I54),$A$65*$C$65,I65) -> 6664.075131 | K65: 6664.075131 | L65: =IF(AND($M$76>$A$67,L54>K54)*$C$65,K65) -> 6664.075131 | M65: =IF(AND($M$76>$A$67,M54>L54),$A$65*$C$65,L65) -> 6664.075131 | N65: =IF(AND($M$76>$A$67,N54>M54),$A$65*$C$65,M65) -> 6664.075131 | O65: =IF(AND($M$76>$A$67,O54>N54),$A$65*$C$65,N65) -> 6664.075131 | P65: =IF(AND($M$76>$A$67,P54>O54),$A$65*$C$65,O65) -> 6664.075131 | Q65: =IF(AND($M$76>$A$67,Q54>P54),$A$65*$C$65,P65) -> 6664.075131 | R65: =$A$65*$C$65 -> 6664.075131 | S65: =$A$65*$C$65 -> 6664.075131
A67: 2020-06-30 | B67: Turnkey - start date of operation Restarted for corrections
A68: 3039-02-02T16:00:00 | E68: Years: | F68: 1 | G68: =F68+1 -> 2 | H68: 3 | I68: 4 | J68: 5 | K68: 6 | L68: 7 | T68: up
A69: Level ❸ | B69: PROFITABILITY ANALYSIS | D69: Up front investment: | E69: =-C18 -> -5997300 | F69: =F39+G39 -> 1431472.554 | G69: =H39+I39 -> 723696.8933 | H69: =J39+K39 -> 890409.1726 | I69: =L39+M39 -> 1122652.33 | J69: =N39+O39 -> 1260383.675 | K69: =P39+Q39 -> 1347609.611 | L69: =R39+S39 -> 956052.6154
B70: 1-Yr period Operating Cash Flows | E70: Debt-Service Coverage Ratio = EBIT/Costs | F70: =SUM(G70:M70)/T70 -> 1.941046294 | G70: =(G29+G26)/G88 -> 1.491291115 | H70: =(I29+I26)/I88 -> 1.412979256 | I70: =(J29+J26)/J88 -> 2.556876186 | J70: =(K29+K26)/K88 -> 1.651549763 | K70: =(M29+M26)/M88 -> 1.977570136 | L70: =(O29+O26)/O88 -> 2.181018983 | M70: =(Q29+Q26)/Q88 -> 2.316038621 | T70: =MATCH(50,G70:S70) -> 1900-01-07
A71: Discounted Cash Flow Models | C71: The Investor can make enough in operating | F71: =IF(F70>=1.2,"Good","Bad") -> Good | G71: Default Risk Management | K71: Operational Risk Management
A72: Section MEASURING PROFITABILITY | C72: profits to pay its current debt service costs. It is subject of fiscal year-end monitoring. | F72: DSCR | G72: Section | M72: Section "SENSITIVITY ANALYSIS"
F73: Level④ | G73: PAYBACK PERIOD | K73: Simulation of Good Market | M73: Enter A1 share | N73: Simulation of Bad Market
A74: Discount (hurdle) rate : | C74: 0.065 | D74: Loan Life Coverage Ratio | G74: Period: | H74: =D132 -> 6 | I74: 6.536816234 | K74: =IF(Bayes!C7>Bayes!C9,"A1","A2") -> A1 | L74: Salesman | M74: 67 | N74: =IF(Bayes!C7<Bayes!C9,"A1 ","A2") -> A2 | O74: Salesman
A75: Net Present Value (NPV for CADS) : | C75: =NPV(C74,E69:L69) -> 50109.20967 | D75: Unlike period-on-period measures such as the above DSCR, it provides the Lender with a measure of the number of times the cash flow over the scheduled loan life can repay the outstanding debt balance. | G75: Date: | H75: 2022-12-31 | I75: earliness | L75: 79 | M75: =M74/100 -> 0.67 | N75: =100-L75 -> 21
A76: IRR : | C76: =IRR(E69:L69) -> 0.06751337727 | D76: 0.065 | E76: LLCR = | F76: =C75/A87 -> 0.0104283733 | H76: Accelerated amortization of loans | K76: Good sales | M76: 2021-06-30 | N76: Bad sales Select→ | P76: distribution of sales.
A77: 1 | B77: Commercial bank, Own funds (Loan "D") | C77: =SUM(D77+E77) -> 0 | D77: ='Cap.Goods'!N36 -> 0 | E77: ='Cap.Goods'!O36 -> 0 | F77: 0 | H77: Update £ it now. | M77: . Correction factor for Area of critical announcement
M78: =IF(AND(L75>90,N75>60)," STOP! Calm down. You've just entered a field of dreams!",Bayes!P21) -> 2.1
B79: Loan "C" Local market vegetables | E79: 0 | F79: =Q10 -> 90000 | G79: =$R$10 -> 150000 | H79: =$Q$10 -> 90000 | I79: =$R$10 -> 150000 | J79: =$Q$10 -> 90000 | K79: =$R$10 -> 150000 | L79: =$Q$10 -> 90000 | M79: =$R$10 -> 150000 | N79: =$Q$10 -> 90000 | O79: =$R$10 -> 150000 | P79: =$Q$10 -> 90000 | Q79: =$R$10 -> 150000 | R79: =$Q$10 -> 90000 | S79: =$R$10 -> 150000
B80: =O16 -> 0 | C80: =C13 -> Date: | D80: 2019-12-30 | E80: 2020-06-30 | F80: 2020-12-31 | G80: 2021-06-30 | H80: 2021-12-31 | I80: 2022-06-30 | J80: 2022-12-31 | K80: 2023-06-30 | L80: 2023-12-31 | M80: 2024-06-30 | N80: 2024-12-31 | O80: 2025-06-30 | P80: 2025-12-31 | Q80: 2026-06-30 | R80: 2026-12-31 | S80: 2027-06-30
B81: LOANS Number of Periods | C81: =C12 -> Nr of Monts | F81: =E12 -> 12 | G81: 18 | H81: 24 | I81: 30 | J81: 36 | K81: 42 | L81: 48 | M81: 54 | N81: 60 | O81: 66 | P81: 72 | Q81: 78 | R81: =P12 -> 78 | S81: =Q12 -> 84
B82: Nr. of periods | C82: =MATCH(50,E82:S82) -> 15 | E82: 1 | F82: =E82+1 -> 2 | G82: =F82+1 -> 3 | H82: =G82+1 -> 4 | I82: 5 | J82: 6 | K82: 7 | L82: 8 | M82: 9 | N82: 10 | O82: 11 | P82: 12 | Q82: 13 | R82: 14 | S82: =R82+1 -> 15
B83: Nr. of principal period repayments | C83: =MATCH(50,F83:S83) -> 14 | F83: =D11 -> 1 | G83: 2 | H83: 3 | I83: 4 | J83: 5 | K83: 6 | L83: 7 | M83: 8 | N83: 9 | O83: 10 | P83: 11 | Q83: 12 | R83: 13 | S83: 14
A85: TOTAL: | B85: Loan "A", Balance liabilities | C85: =C16 -> 5228500 | D85: =C85 -> 5228500 | E85: =D85 -> 5228500 | F85: =E85 -> 5228500 | G85: =F85-F87 -> 5228500 | H85: =G85-G87 -> 4901186 | I85: =H85-H87 -> 4567325 | J85: 4226787 | K85: 3879438 | L85: =K85-K87 -> 3525142 | M85: =L85-L87 -> 3163760 | N85: =M85-M87 -> 2795151 | O85: =N85-N87 -> 2419170 | P85: 2035669 | Q85: =P85-P87 -> 1644498 | R85: =Q85-Q87 -> 1245504 | S85: =R85-R87 -> 838530
A86: =SUM(G86:S86) -> 622931 | B86: Interest payments | C86: ='Cap.Goods'!H38 -> 0.04 | G86: =-ROUND(IPMT($C$86/2,F83,$C$83,F85),0) -> 104570 | H86: 98024 | I86: 85628 | J86: 73846 | K86: 62724 | L86: 52312 | M86: 42661 | N86: 33827 | O86: 25866 | P86: 18838 | Q86: 12805 | R86: 7835 | S86: 3995 | T86: =SUM(G86:R86) -> 3594-08-02
A87: =SUM(G87:S87) -> 4805084 | B87: Principal installments | G87: =-ROUND(PPMT($C$86/2,F83,$C$83,$C$85),0) -> 327314 | H87: 333861 | I87: 340538 | J87: 347349 | K87: 354296 | L87: 361382 | M87: 368609 | N87: 375981 | O87: 383501 | P87: 391171 | Q87: 398994 | R87: 406974 | S87: 415114 | T87: =SUM(G87:R87) -> 4389970
A88: =SUM(A86:A87) -> 5428015 | B88: Installments, TOTAL: | C88: =SUM(D88:Q88) -> 4594097 | D88: =SUM(D86:D87) -> 0 | E88: 0 | F88: 0 | G88: 431884 | H88: 431885 | I88: 426166 | J88: 421195 | K88: =SUM(K86:K87) -> 417020 | L88: =SUM(L86:L87) -> 413694 | M88: 411270 | N88: 409808 | O88: =SUM(O86:O87) -> 409367 | P88: =SUM(P86:P87) -> 410009 | Q88: =SUM(Q86:Q87) -> 411799 | R88: =SUM(R86:R87) -> 414809 | S88: =SUM(S86:S87) -> 419109
A90: TOTAL: | B90: Loan "B", Balance liabilities | C90: =C17 -> 768800 | D90: =D17 -> 597800 | E90: =D90+E17 -> 768800 | F90: =E90+F17 -> 768800 | G90: =F90-F92 -> 768800 | H90: =G90-G92 -> 720672 | I90: =H90-H92 -> 671581 | J90: =I90-I92 -> 621508 | K90: =J90-J92 -> 570434 | L90: 518338 | M90: 465200 | N90: 411000 | O90: 355716 | P90: 299326 | Q90: 241808 | R90: =Q90-Q92 -> 183140 | S90: =R90-R92 -> 123298
A91: =SUM(D91:S91) -> 104201 | B91: Interest payments | C91: ='Cap.Goods'!I38 -> 0.04 | E91: =-ROUND(IPMT($C$91/2,E82,$C$82,D90),0) -> 11956 | F91: =-ROUND(IPMT($C$91/2,F82,$C$82,E90),0) -> 14487 | G91: =-ROUND(IPMT($C$91/2,G82,$C$82,F90),0) -> 13580 | H91: =-ROUND(IPMT($C$91/2,H82,$C$82,G90),0) -> 12655 | I91: =-ROUND(IPMT($C$91/2,I82,$C$82,H90),0) -> 10978 | J91: =-ROUND(IPMT($C$91/2,J82,$C$82,I90),0) -> 9390 | K91: 7896 | L91: 6504 | M91: 5222 | N91: 4056 | O91: 3015 | P91: =-ROUND(IPMT($C$91/2,P82,$C$82,O90),0) -> 2108 | Q91: =-ROUND(IPMT($C$91/2,Q82,$C$82,P90),0) -> 1344 | R91: =-ROUND(IPMT($C$91/2,R82,$C$82,Q90),0) -> 731 | S91: =-ROUND(IPMT($C$91/2,S82,$C$82,R90),0) -> 279 | T91: =SUM(G91:R91) -> 2112-02-16
A92: =SUM(D92:Q92) -> 585660 | B92: Principal installments | C92: =ROUND(SUM(D92:S92),-1) -> 706540 | G92: =-ROUND(PPMT($C$91/2,F83,$C$83,$C$90),0) -> 48128 | H92: 49091 | I92: 50073 | J92: 51074 | K92: 52096 | L92: 53138 | M92: 54200 | N92: 55284 | O92: 56390 | P92: 57518 | Q92: 58668 | R92: 59842 | S92: 61038
A93: =SUM(D93:S93) -> 810741 | B93: Installments, TOTAL: | C93: =SUM(D93:Q93) -> 688851 | D93: =SUM(D91:D92) -> 0 | E93: =SUM(E91:E92) -> 11956 | F93: =SUM(F91:F92) -> 14487 | G93: =SUM(G91:G92) -> 61708 | H93: =SUM(H91:H92) -> 61746 | I93: =SUM(I91:I92) -> 61051 | J93: =SUM(J91:J92) -> 60464 | K93: =SUM(K91:K92) -> 59992 | L93: 59642 | M93: 59422 | N93: 59340 | O93: 59405 | P93: =SUM(P91:P92) -> 59626 | Q93: =SUM(Q91:Q92) -> 60012 | R93: =SUM(R91:R92) -> 60573 | S93: =SUM(S91:S92) -> 61317
A94: Diversification following from Risk Assessment
A95: OPERATIONAL TEST } Balance liabilities | C95: =C77 -> 0 | D95: =D77 -> 0 | E95: =D95+E77 -> 0 | F95: =E95+F77 -> 0 | G95: =F95-F97 -> 0 | H95: =G95-G97 -> 0 | I95: =H95-H97 -> 0 | J95: 0 | K95: 0 | L95: 0 | M95: 0 | N95: 0 | O95: 0 | P95: 0 | Q95: 0 | R95: =Q95-Q97 -> 0 | S95: =R95-R97 -> 0
A96: =ROUND(SUM(D96:Q96),-1) -> 0 | B96: Interest payments | C96: ='Cap.Goods'!N38 -> 0.055 | E96: =-ROUND(IPMT($C$96/2,E82,$C$82,D95),0) -> 0 | F96: =-ROUND(IPMT($C$96/2,F82,$C$82,E95),0) -> 0 | G96: =-ROUND(IPMT($C$96/2,G82,$C$82,F95),0) -> 0 | H96: =-ROUND(IPMT($C$96/2,G83,$C$83,G95),0) -> 0 | I96: 0 | J96: 0 | K96: 0 | L96: 0 | M96: 0 | N96: 0 | O96: 0 | P96: 0 | Q96: 0 | R96: 0 | S96: 0 | T96: =SUM(G96:R96) -> 00:00:00
B97: Principal deferred payments | C97: =C77 -> 0 | G97: =-ROUND(PPMT($C$96/2,F83,$C$83,$C$95),0) -> 0 | H97: =-ROUND(PPMT($C$96/2,H82,$C$82,$C$95),0) -> 0 | I97: =-ROUND(PPMT($C$96/2,I82,$C$82,$C$95),0) -> 0 | J97: 0 | K97: 0 | L97: 0 | M97: 0 | N97: 0 | O97: 0 | P97: 0 | Q97: =-ROUND(PPMT($C$96/2,Q82,$C$82,$C$95),0) -> 0 | R97: =-ROUND(PPMT($C$96/2,R82,$C$82,$C$95),0) -> 0 | S97: =-ROUND(PPMT($C$96/2,S82,$C$82,$C$95),0) -> 0
B98: Installments, TOTAL: | E98: =SUM(E96:E97) -> 0 | F98: =SUM(F96:F97) -> 0 | G98: =SUM(G96:G97) -> 0 | H98: =SUM(H96:H97) -> 0 | I98: =SUM(I96:I97) -> 0 | J98: 0 | K98: 0 | L98: 0 | M98: 0 | N98: 0 | O98: 0 | P98: 0 | Q98: 0 | R98: =SUM(R96:R97) -> 0 | S98: =SUM(S96:S97) -> 0
A100: =A86+A91+A96 -> 727132 | B100: GRAPHS | D100: 1 | E100: =D100+1 -> 2 | F100: =E100+1 -> 3 | G100: 4 | H100: 5 | I100: 6 | J100: 7 | K100: 8 | L100: 9 | M100: 10 | N100: 11 | O100: 12 | P100: =O100+1 -> 13 | Q100: =P100+1 -> 14 | R100: =Q100+1 -> 15 | S100: =R100+1 -> 16
B101: Total balance liabilities, Loan "A" | D101: =D85 -> 5228500 | E101: 5228500 | F101: =F85 -> 5228500 | G101: 5228500 | H101: 4901186 | I101: =I85 -> 4567325 | J101: 4226787 | K101: 3879438 | L101: 3525142 | M101: 3163760 | N101: 2795151 | O101: 2419170 | P101: 2035669 | Q101: 1644498 | R101: =R85 -> 1245504 | S101: =S85 -> 838530
B102: OPERATING PERIOD } Total balance liabilities "A" | C102: IN OPERATION | D102: =D85 -> 5228500 | E102: =E85 -> 5228500 | F102: =F85 -> 5228500 | G102: =G85 -> 5228500 | H102: =H85 -> 4901186 | I102: =I85 -> 4567325 | J102: 4226787 | K102: 3879438 | L102: 3525142 | M102: 3163760 | N102: 2795151 | O102: 2419170 | P102: 2035669 | Q102: 1644498 | R102: =R85 -> 1245504 | S102: =S85 -> 838530
A103: =IF(SUM(G86:Q86)=C85,"True","False") -> False | B103: Cash | D103: =D39 -> -2509700 | E103: -3530656 | F103: 1260223.155 | G103: 171249.3993 | H103: 527862.7894 | I103: 195834.1039 | J103: 670661.1583 | K103: 219748.0144 | L103: 791016.2384 | M103: 331636.0914 | N103: 887003.9305 | O103: 373379.7441 | P103: 934968.2066 | Q103: 412641.4046 | R103: 534658.2865 | S103: 421394.329
B104: Cash Cumulative | D104: =D40 -> -2509700 | E104: -6040356 | F104: -4780132.845 | G104: -4608883.446 | H104: -4081020.657 | I104: -3885186.553 | J104: -3214525.394 | K104: -2994777.38 | L104: -2203761.142 | M104: -1872125.05 | N104: -985121.1197 | O104: -611741.3755 | P104: 323226.8311 | Q104: 735868.2357 | R104: 1270526.522 | S104: 1691920.851
B105: Operating cash cumulative | D105: =D35 -> -9400 | E105: =D35+E35 -> -43056 | F105: =E35+F35 -> 1226567.155 | G105: =F35+G35 -> 1806914.554 | H105: =H125 -> 2674673.343 | I105: 3261118.447 | J105: 4330202.606 | K105: 4956342.62 | L105: 6161878.858 | M105: 6916323.95 | N105: 8234592.88 | O105: 9047863.624 | P105: 10431520.83 | Q105: 11301824.24 | R105: 12172127.64 | S105: 13042431.04
T106: up
C122: Debt Rate | D122: =D102/$C$18 -> 0.8718089807 | E122: 0.8718089807 | F122: 0.8718089807 | G122: 0.8718089807 | H122: 0.8172320878 | I122: 0.7615635369 | J122: 0.7047816517 | K122: 0.6468640888 | L122: 0.5877881713 | M122: 0.5275307222 | N122: 0.4660682307 | O122: 0.4033765194 | P122: 0.3394309106 | Q122: 0.2742063929
C123: Start date
B124: Auxiliary rows: Crossing point of cash and debt | C124: =D80 -> 2019-12-30 | D124: 1 | E124: =D124+1 -> 2 | F124: =E124+1 -> 3 | G124: 4 | H124: 5 | I124: 6 | J124: 7 | K124: 8 | L124: 9 | M124: 10 | N124: =M124+1 -> 11 | O124: 12 | P124: 13 | Q124: 14 | R124: =Q124+1 -> 15 | S124: =R124+1 -> 16
B125: Payback > cumulate OCFs | C125: =MATCH(A128,D105:Q105) -> 2 | D125: =$D$35 -> -9400 | E125: =D125+$E$35 -> -43056 | F125: =E125+$F$35 -> 1217167.155 | G125: =F125+$G$35 -> 1763858.554 | H125: =G125+$H$35 -> 2674673.343 | I125: =H125+$I$35 -> 3261118.447 | J125: =I125+$J$35 -> 4330202.606 | K125: =J125+$K$35 -> 4956342.62 | L125: =K125+$L$35 -> 6161878.858 | M125: =L125+$M$35 -> 6916323.95 | N125: =M125+$N$35 -> 8234592.88 | O125: =N125+$O$35 -> 9047863.624 | P125: =O125+$P$35 -> 10431520.83 | Q125: =P125+$Q$35 -> 11301824.24 | R125: =Q125+$Q$35 -> 12172127.64 | S125: =R125+$Q$35 -> 13042431.04
B126: repayment estimatior row | C126: =DATE(YEAR(C124)+C125,MONTH(C124)+2,DAY(C124+7)) -> 2022-02-06 | D126: =CHOOSE(C125,E80,F80,G80,H80,I80,J80,K80,L80,M80,N80,O80,P80,Q80) -> 2020-12-31 | E126: =C125*6 -> 12 | F126: =E126/12 -> 1 | G126: =ROUNDUP(F126,0) -> 1 | H126: =G126-F126 -> 0 | I126: =H126*12 -> 0
B127: auxiliary row | C127: Payback date | E127: =(D126-E80)/12 -> 15.33333333 | F127: =ROUNDDOWN(E127,0) -> 15 | G127: =E127-F127 -> 0.3333333333 | H127: =G127*12 -> 4 | I127: =IF(H127=12,F127+1,F127) -> 15 | J127: =IF(H127=12,0,H127) -> 4
A128: =C86 -> 0.04 | B128: Base forecast
A129: =D132*365+1+E132*30+4 -> 2391.104487 | B129: Yr: | D129: 1 | E129: 2 | F129: 3 | G129: 4 | H129: 5 | I129: 6 | J129: 7 | K129: 8
A130: =A129/(365+1) -> 6.533072369 | B130: AnnNCinF | D130: =D39+E39 -> -6040356 | E130: =F39+G39 -> 1431472.554 | F130: =H39+I39 -> 723696.8933 | G130: =J39+K39 -> 890409.1726 | H130: =L39+M39 -> 1122652.33 | I130: =N39+O39 -> 1260383.675 | J130: =P39+Q39 -> 1347609.611
A131: =#REF! ->  | B131: Comulative | D131: =D130 -> -6040356 | E131: =D131+E130 -> -4608883.446 | F131: =E131+F130 -> -3885186.553 | G131: -2994777.38 | H131: -1872125.05 | I131: -611741.3755 | J131: 735868.2357
A132: =A131+A129 ->  | B132: Period | D132: =COUNTIF(D131:J131,"<"&A128) -> 6 | E132: =F132*12/10 -> 6.536816234 | F132: =(A128-HLOOKUP(COUNTIF(D131:J131,"<"&A128),D129:J131, 3,0))/(HLOOKUP(COUNTIF(D131:J131,"<"&A128)+1,D129:J131,2,0))*12 -> 5.447346862
E133: Ê | F133: Indicates the fraction of the year
D136: 0.229 | E136: 0.1787 | F136: 0.1422 | G136: 0.0655 | H136: 0.0199 | I136: 0.0019 | J136: 0 | K136: 0 | L136: 0.012 | M136: 0.0644 | N136: 0.08 | O136: 0.2064 | P136: =SUM(D136:O136) -> 1

Sheet Bayes
A1: CHAPTER 1 | B1: DECISION ANALYSIS | L1: Name of Project
A2: Level④ | B2: POSTERIOR PROBABILITIES OF TWO EVENTS | L2: =Intro!H5 -> TomCuc Greenhouse
A4: Background: | B4: You are producer and supplier of high quality vegetables to two salesmen on large nets of European wholesale markets. Let A1 and A2 denoted two events of interest—different quantiies for sales.
A5: Historical Info: | B5: Enter new data below. If except these two events of interest there are more probabilities indicated by the Online Cash-Flow Control System, go to the next Sheet "Bayes5" .
A7: Event A1: part of QUANTITY for Salesman A1 → | C7: =BUDGET!M75 -> 0.67 | D7: Percentage of prior probability for sale on the market. | J7: The mutually exclusive events for which posterior probabilities are desired.
J8: My events of interest:
A9: Event A2: part of QUANTITY for Salesman A2 → | C9: =100%-C7 -> 0.33 | D9: Percentage supplied to A2 I | F9: → low quality of commercial service - term → of deferred payment and lower income. | J9: Which of both market distributors sells our products on the better prices and pays us faster?
F10: In analyzing of conditional prior probability for specific events of interest here are indicated probabilities giving new information for their revision
A11: Event A1: QUALITY Good services for Salesman A1 → | C11: =BUDGET!L75/100 -> 0.79 | D11: Percentage Good sаlеs and payments (G) | F11: Based on pre-design marketing the values of prior conditional probabilities of professional ratings of the two salesmen and their markets are shown in the Table. This prior probability will be revised in light of new operational information Income streams when appear problems, what is the probability and what part is due to each Sales-man? The Joint Bad Probabilities are found by multiplying the prior probabilities by the Conditional Probabilities = equal to Overall probability of finding the Bad part of commercial outsourcing, and for further improvement.
A13: Event A2: QUALITY Bad services for Salesman A2 → | C13: =BUDGET!N75/100 -> 0.21 | D13: Percentage Bad sаlеs and payment (B)
A15: Safe Event | C15: SALES REVENUE EVENTS | E15: PRIOR PROBABILITY | G15: POSTERIOR | K15: TABULAR APPROACH
A16: Restore Model | B16: When Yu pay - cry | C16: Percentage of total Sаlеs | D16: Percentage Bad QUALITY Sаlеs | E16: QUANTITY % from A1∩A2 Sаlеs | G16: PROBABILITIES that Bad part of sales is: | K16: A1U A2 Prior Probabilities | L16: B Conditional Probabilities | M16: Joint Bad A1, 2 ∩ B | N16: Posterior Probabilities | P16: Others cry
A18: Clean Model | B18: Salesman A1 | C18: =C7 -> 0.67 | D18: =1-C11 -> 0.21 | E18: =C7 -> 0.67 | G18: From Salesman A1: | I18: =D18*E18/(D18*E18+D20*E20) -> 0.67 | K18: =C18 -> 0.67 | L18: =D18 -> 0.21 | M18: =K18*L18 -> 0.1407 | N18: =M18/M21 -> 0.67
B20: Salesman A2 | C20: =C9 -> 0.33 | D20: =C13 -> 0.21 | E20: =1-E18 -> 0.33 | G20: From Salesman A2: | I20: =D20*E20/(D18*E18+D20*E20) -> 0.33 | K20: =C20 -> 0.33 | L20: =D20 -> 0.21 | M20: =K20*L20 -> 0.0693 | N20: =M20/M21 -> 0.33
A21: ANALYSIS: | B21: On relative basis: the probability of the Bad event, coming from Salesman А2 [ | F21: =N20 -> 0.33 | G21: ] compared [ | H21: =N18 -> 0.67 | I21: ] from Good A1. | K21: =K18+K20 -> 1 | L21: To the new info given each event | M21: =SUM(M18:M20) -> 0.21 | N21: =N18+N20 -> 1 | P21: =M21*10+O21*1 -> 2.1
B22: There is a greater likelihood Bad event to be observed because outcome as [ | F22: =M20 -> 0.0693 | G22: ] following [ | H22: =N20 -> 0.33 | I22: ] A2 Bad event could be a crash. | M22: Overall <probability of Bad event=
A24: CLOSING:
A26: Constructed using "Quantitative Methods for Business" (Fifth edition); David R. Anderson, University of Cincinnati, Dennis J. Sweeney, University of Cincinnati, Thomas A. Williams, Rochester Institute of Technology; Library of Congress Cataloging-in-Publication Data.
A28: COMMENTS: | B28: It is well known and certainly recommendable that to start an investment project, the investor (and his team making inside risk assessment) must be convinced, must believe in the good outcome, and he must act decisively, without any hesitation. Very often, this is reflected in a low assessment of the Default Risk Ratio (d--Factor) that is raising its real impact. In such cases we approach the above probability estimation, often called “what-if” analysis. It follows the High Qualified Audit, in this Risk Assessment program recognized as "Group D".
B31: Excerpts from the comments of our clients of this model: ". . . default risk assessment is the starting point which most frequently cause disputes with the lenders, very often ending with denial of funding, no matter what the finally stated reason was." Look at the picture below, which is the most popular example of visible illusion.
C34: We are looking out to the market and don’t see a big risk to become unable to pay back our debt. | K34: Who is right, when the lengths of the lines are equal? . . . "
C36: The lenders are only looking within themselves, see plenty of big risks, and talk only about it.
B38: In making a decision for new investments never believe and rely solely on: ① your intuition, based on long-term experience; ② suggestions of high level experts; and ③ good chance.
B39: Rely only on risk assessment and computing of prior and posterior probability of specific events of interest. Once you have them, return to the above approaches for the final decision.
B40: The assessment of Default Risk (d ) to an acceptable level is a key factor for the positive resolution of a loan application. The system, called OCFCS for short, which we recommend is an instrument that serves post factum an investment throughout the project providing permanent online information to the lender, insurer and to the investor.
A44: RECORD: | B44: PROJECT NAME | D44: QUALITY | F44: QUANTITY | H44: The event . . .
B45: (or Investor Name) | D45: AGENT A1 | E45: AGENT A2 | F45: AGENT A1
B46: =L2 -> TomCuc Greenhouse | D46: 0.98 | E46: 0.95 | G46: 0.65 | H46: Agents distribute in their countries these percentages of KEM's products.
A48: Keep these h cells free for longer project name extension

Sheet Staff
D1: лв./$ exchange rate: | E1: 1 | F1: 1.52 | I1: =Intro!A99 -> 4 | J1: Area
D2: USD/EUR exchange rate: | E2: 1 | F2: 1.05
D3: EUR/лв. exchange rate: | E3: 1 | F3: 1.96 | L3: Supporting Column
C5: OCFCS & Trading Consulting Company | F5: STAFF - Start Salaries
D6: PERSONNEL, Position | E6: % | F6: € p.Мо | G6: p.ann | H6: € p.Mo | J6: 0
E7: Remuneration | H7: ₊Bonus
D8: WORKING ТЕАМ | H8: (conditional)
C9: 1 | D9: Manager | E9: 0.5 | F9: 1000 | G9: =E9*F9*$J$16 -> 6000 | H9: 100 | I9: =E9*(F9+G9) -> 3500 | J9: =E9*I9*$J$6 -> 0
C10: =C9+1 -> 2 | D10: Expert risk management | E10: 0.5 | F10: 600 | G10: =E10*F10*$J$16 -> 3600 | H10: 75 | I10: 0 | J10: =I10*$J$6 -> 0
C11: =C10+1 -> 3 | D11: Expert financial control | E11: 0.5 | F11: 600 | G11: 3600 | H11: 50 | I11: 0 | J11: =I11*$J$6 -> 0
D12: TOTAL: | E12: 1.5 | G12: =SUM(G9:G11) -> 13200 | J12: =SUM(J9:J11) -> 0
C15: Project Company TomCuC, Ltd. | F15: STAFF - Start Salaries
D16: PERSONNEL, Position | E16: Nr | F16: € p.Мо | G16: p.ann | H16: € p.Mo | J16: 12
F17: Base salary | G17: Fixed | H17: ₊Bonus | I17: TOTAL
D18: ASMINISTRATION | E18: =SUM(E19:E22) -> 6 | F18: salary | G18: salary | H18: (conditional)
C19: 1 | D19: CEO - Manager | E19: 1 | F19: 1500 | G19: =E19*F19*$J$16 -> 18000 | H19: 300 | I19: =F19+H19 -> 1800 | J19: =E19*I19*$J$16 -> 21600
C20: =C19+1 -> 2 | D20: Senior level technicans | E20: 2 | F20: 1000 | G20: =E20*F20*$J$16 -> 24000 | H20: 200 | I20: =F20+H20 -> 1200 | J20: =E20*I20*$J$16 -> 28800
C21: =C20+1 -> 3 | D21: Mid-level tehnicans | E21: 2 | F21: 600 | G21: =E21*F21*$J$16 -> 14400 | H21: 100 | I21: =F21+H21 -> 700 | J21: =E21*I21*$J$16 -> 16800
C22: =C21+1 -> 4 | D22: Accountant | E22: 1 | F22: 600 | G22: =E22*F22*$J$16 -> 7200 | H22: 50 | I22: =F22+H22 -> 650 | J22: =E22*I22*$J$16 -> 7800
D23: SERVICE STAFF | E23: =SUM(E24:E25) -> 5
C24: =C22+1 -> 5 | D24: Truckers | E24: 1 | F24: 700 | G24: =E24*F24*$J$16 -> 8400 | H24: 50 | I24: =F24+H24 -> 750 | J24: =E24*I24*$J$16 -> 9000
C25: =C24+1 -> 6 | D25: Security | E25: 4 | F25: 500 | G25: =E25*F25*$J$16 -> 24000 | H25: 0 | I25: =F25+H25 -> 500 | J25: =E25*I25*$J$16 -> 24000
D26: SubTOTAL: | E26: =E18+E23 -> 11 | G26: =SUM(G19:G25) -> 96000 | J26: =SUM(J19:J25) -> 108000
C28: 30 | D28: PRODUCTION STAFF | E28: =E29 -> 30
C29: 7 | D29: Payroll staff, p Mo | E29: =C28 -> 30 | F29: 500 | G29: =E29*F29*$J$16 -> 180000 | H29: 100 | I29: =F29+H29 -> 600 | J29: =E29*I29*$J$16 -> 216000
D30: Social Security (averaged) | G30: =G29*I30 -> 31500 | I30: =I37 -> 0.175 | J30: =I30*J29 -> 37800
D31: SubTOTAL: | G31: =G29+G30 -> 211500 | J31: =SUM(J29:J30) -> 253800
D33: TomCuC HH, Ltd., TOTAL: | E33: =E26+E28 -> 41 | G33: =G12+G26+G31 -> 320700 | J33: =J26+J29 -> 324000
D37: Social Security (averaged) | I37: 0.175 | J37: =I37*(J12+J26) -> 18900
D38: TOTAL: | J38: =J12+J33+J37 -> 342900
C41: * | D41: Consequence of the need of Effective System of Internal Control during the repayment period.
D42: It must have to this position special Assignment of Responsibilities combining virtual treasurer and controller.
D43: He should have Limited Proper Authorization during the loan repayment period only.

Sheet Bayes5
A1: CHAPTER 1 | F1: DECEISION ANALYSES | P1: Name of Project
B2: POSTERIOR PROBABILITIES OF FIVE EVENTS | P2: ='Cap.Goods'!E3 -> Zoom 152 Capital Goods and Services
A4: Background: | B4: Five mutually exclusive events following delivery of goods or services by Suppliers where one of the events must occur when new information
A5: Clean and Start | B5: from a sample, a special report, a product test, and so on, about it is received. Henceforth, you have to revise or update the prior probability values.
A6: Historical Info: | B6: Good quality event  ENTER | H6: Complete here the here Bad parts or services received from each supplier .
C7: QUALITY | G7: QUANTITY | I7: POSTERIOR PROBABILITY | K7: CONDITIONAL | M7: FINAL | O7: NOTES
C8: % Good | E8: % Bad | G8: % from | I8: that Bad event is: | K8: Joint Bad A1,2 ∩B | M8: for Ai
A9: Event A1 from: | B9: Supplier A1 (Subcontractor) | E9: =1-C9 -> 1 | I9: =100*E9*G9/($E$9*$G$9+$E$11*$G$11+$E$13*$G$13+$E$15*$G$15+$E$17*$G$17) -> 0 | K9: =100*G9*E9 -> 0 | M9: =K9/$K$19 -> 0
A11: Event A2 from: | B11: Supplier A2 (Subcontractor) | E11: =1-C11 -> 1 | I11: =100*E11*G11/($E$9*$G$9+$E$11*$G$11+$E$13*$G$13+$E$15*$G$15+$E$17*$G$17) -> 0 | K11: =100*G11*E11 -> 0 | M11: =K11/$K$19 -> 0
A13: Event A3 from: | B13: Supplier A3 (Subcontractor) | E13: =1-C13 -> 1 | I13: =100*E13*G13/($E$9*$G$9+$E$11*$G$11+$E$13*$G$13+$E$15*$G$15+$E$17*$G$17) -> 0 | K13: =100*G13*E13 -> 0 | M13: =K13/$K$19 -> 0
A15: Event A4 from: | B15: Supplier A4 (Subcontractor) | E15: =1-C15 -> 1 | I15: =100*E15*G15/($E$9*$G$9+$E$11*$G$11+$E$13*$G$13+$E$15*$G$15+$E$17*$G$17) -> 0 | K15: =100*G15*E15 -> 0 | M15: =K15/$K$19 -> 0
A17: Event A5 from: | B17: Supplier A5 (Subcontractor) | E17: =1-C17 -> 1 | G17: =1-SUM(G9:G15) -> 1 | I17: =100*E17*G17/($E$9*$G$9+$E$11*$G$11+$E$13*$G$13+$E$15*$G$15+$E$17*$G$17) -> 100 | K17: =100*G17*E17 -> 100 | M17: =K17/$K$19 -> 1
A19: See Comments | K19: =SUM(K9:K18) -> 100 | M19: =SUM(M9:M18) -> 1
K20: Overall<probability of happen Bad event
